Workbook

Sheet Publish
B1: Root Directory | D1: C:\Users\Georg\Documents\IMARKET\Updategraphs | K1: .pdf
B2: Sub-Directory | D2: Month | E2: This directory will be created with date appended | K2: .png
B3: FileName | E3: First part of filename | K3: =TODAY() -> 2018-08-03
B4: Date | D4: x | E4: x=todays's date anything else will be appended to filename | K4: =IF(D4="x",MONTH(K3)&"-"&DAY(K3)&"-"&YEAR(K3),D4) -> 8-3-2018
B5: extension for Tables | D5: Tbl | K5: =D1&"\"&D2&"-"&K4 -> C:\Users\Georg\Documents\IMARKET\Updategraphs\Month-8-3-2018
B6: extension for Figures | D6: Fig | E6: Do not change green fields
K8: Existing Files are over written!
D9: Type | E9: SaveAs | F9: Second Part of filename | G9: Sheet Name | H9: Range | K9: Path
B10: 1 | D10: Fig | E10: .png | F10: Fig-9. | G10: 05-15 | K10: =IF(ISBLANK(D10),"",$K$5&"\"&$D$3&F10&"-"&$K$4&E10) -> C:\Users\Georg\Documents\IMARKET\Updategraphs\Month-8-3-2018\Fig-9.-8-3-2018.png | M10: ok!
B11: 2 | D11: Fig | E11: .pdf | F11: Fig-9. | G11: 05-15 | K11: =IF(ISBLANK(D11),"",$K$5&"\"&$D$3&F11&"-"&$K$4&E11) -> C:\Users\Georg\Documents\IMARKET\Updategraphs\Month-8-3-2018\Fig-9.-8-3-2018.pdf | M11: ok!
B12: 3
B13: 4
B14: 5
B15: 6

Sheet DATA
A1: Title: | B1: S&P 500 Stock Price Index | M1: =IF(CELL("COL",M1:M1)>26,CHAR(64+INT(CELL("COL",M1:M1)/26.1)),"")&CHAR(MOD(CELL("COL",M1:M1)-1,26)+65) -> M | N1: N | O1: O | P1: P | Q1: Q | R1: R | S1: S | T1: T | U1: U | V1: V | W1: W | AJ1: =IF(CELL("COL",AJ1:AJ1)>26,CHAR(64+INT(CELL("COL",AJ1:AJ1)/26.1)),"")&CHAR(MOD(CELL("COL",AJ1:AJ1)-1,26)+65) -> AJ | AK1: AK | AL1: AL | AM1: AM | AN1: AN | AO1: AO | CJ1: =IF(CELL("COL",CJ1:CJ1)>26,CHAR(64+INT(CELL("COL",CJ1:CJ1)/26.1)),"")&CHAR(MOD(CELL("COL",CJ1:CJ1)-1,26)+65) -> CJ | CK1: CK | CL1: CL | CM1: CM | CN1: =IF(CELL("COL",CN1:CN1)>26,CHAR(64+INT(CELL("COL",CN1:CN1)/26.1)),"")&CHAR(MOD(CELL("COL",CN1:CN1)-1,26)+65) -> CN | CO1: CO | CQ1: CQ
A2: Series ID: | B2: SP500 | I2: projection | K2: S&P500 seems to be in an oversold position as indicated by the percentage change in the year-over-year rolling returns expressed in standard deviation terms | O2: no interest when in cash | R2: =-R6/R7 -> -10000 | S2: =INDIRECT(R1&AH4)/R7 ->  | T2: =AJ38 -> 1970-09-21 | U2: =U3 -> 2017-04-20 | V2: =XIRR(R2:S2,T2:U2) ->  | X2: buy | AA2: sell | AC2: buy | AD2: sell | BM2: daily | BO2: weekly | BP2: per week | CJ2: year over year rolling return percntage change | CK2: 5-year rolling average of yoy percnt change | CL2: 5-year rolling standard deviation of yoy percnt change | CM2: std deviations away from mean | CN2: liine 0 | CP2: all
A3: Source: | B3: Standard and Poor's | I3: forward projection of S&P500 using random numbers for weekly price change between -$0.40 and +$0.50 to end of 2013 = | K3: $ | O3: with interest when in cash | R3: =CB38 -> -10000 | S3: =CC38 -> 0 | T3: =CD38 -> 1970-09-21 | U3: =CE38 -> 2017-04-20 | V3: =XIRR(R3:S3,T3:U3) ->  | X3: signal | AA3: signal | AC3: signal | AD3: signal | AG3: last row= | AH3: =MAX(AG2500:AG2600) -> 2600 | AN3: total length start to end | AO3: =(U4-T4)/7 -> 2430.428571 | AP3: weeks | BP3: 52.17746 | CG3: out of market | CP3: coppock
A4: Frequency: | B4: Weekly, Ending Thurs, end of period | Q4: S&P500 continuous investment | R4: =R3 -> -10000 | S4: =CF37 -> 242754.2425 | T4: =T2 -> 1970-09-21 | U4: =U2 -> 2017-04-20 | V4: =XIRR(R4:S4,T4:U4) -> 0.07082282603 | AH4: =VLOOKUP(U2,$A$2400:$AG$2600,33,FALSE) ->  | AN4: time in S&P500 | AO4: =SUM(AO10:AO34) -> 1617 | AP4: weeks | BL4: 1965-01-04 | BM4: 3.9 | CG4: from | CH4: to | CP4: signals
B5: FRED Series | D5: and then edit graph | I5: new trough forming | S5: =AN5 -> percent of time in S&P500 | T5: =AO5 -> 0.6653147593 | AN5: percent of time in S&P500 | AO5: =AO4/AO3 -> 0.6653147593 | BL5: 1965-01-05 | BM5: 3.9
A6: =IF(CELL("COL",A6:A6)>26,CHAR(64+INT(CELL("COL",A6:A6)/26.1)),"")&CHAR(MOD(CELL("COL",A6:A6)-1,26)+65) -> A | B6: B | C6: C | D6: D | E6: E | F6: F | G6: G | H6: H | J6: =IF(CELL("COL",J6:J6)>26,CHAR(64+INT(CELL("COL",J6:J6)/26.1)),"")&CHAR(MOD(CELL("COL",J6:J6)-1,26)+65) -> J | K6: =IF(CELL("COL",K6:K6)>26,CHAR(64+INT(CELL("COL",K6:K6)/26.1)),"")&CHAR(MOD(CELL("COL",K6:K6)-1,26)+65) -> K | L6: =IF(CELL("COL",L6:L6)>26,CHAR(64+INT(CELL("COL",L6:L6)/26.1)),"")&CHAR(MOD(CELL("COL",L6:L6)-1,26)+65) -> L | R6: =VLOOKUP(T2,A271:R2999,18) -> 8907.463861 | W6: =IF(CELL("COL",W6:W6)>26,CHAR(64+INT(CELL("COL",W6:W6)/26.1)),"")&CHAR(MOD(CELL("COL",W6:W6)-1,26)+65) -> W | X6: =IF(CELL("COL",X6:X6)>26,CHAR(64+INT(CELL("COL",X6:X6)/26.1)),"")&CHAR(MOD(CELL("COL",X6:X6)-1,26)+65) -> X | Y6: =IF(CELL("COL",Y6:Y6)>26,CHAR(64+INT(CELL("COL",Y6:Y6)/26.1)),"")&CHAR(MOD(CELL("COL",Y6:Y6)-1,26)+65) -> Y | AA6: AA | AB6: AB | AC6: AC | AD6: AD | AE6: AE | AF6: AF | AG6: AG | AH6: AH | BL6: 1965-01-06 | BM6: 3.9
A7: updated to | B7: =MAX(A2514:A2999) -> 2018-08-02 | C7: =TEXT(B7,"mm/dd/yyyy") -> 08/02/2018 | D7: =A7&C7 -> updated to 08/02/2018 | G7: coppock | I7: max of | L7: condition | O7: Silver at | P7: percentg | R7: =R6/10000 -> 0.8907463861 | X7: buy | Y7: buy | Z7: buy | AG7: buy row | AH7: sell row | AJ7: buy | AK7: buy | AL7: sell | AM7: sell | AN7: absolute | AO7: invest | AP7: annualized | BL7: 1965-01-07 | BM7: 3.9
G8: indicator | H8: coppock | I8: WMA | J8: condition | K8: condition | L8: maxWMA - | O8: Buy | P8: return at | X8: signal | Y8: signal | Z8: signal | AJ8: signal | AK8: price | AL8: signal | AM8: price | AN8: return | AO8: period | AP8: rate of | BL8: 1965-01-08 | BM8: 3.9
B9: VALUE | C9: SMA | F9: sum of | G9: WMA | H9: indicator | I9: over | J9: WMA > | K9: WMA - | L9: WMA = | N9: VALUE | O9: and | P9: Sell | U9: stay in gold until return in row V is >= | V9: 0.38 | X9: row | Y9: date | Z9: S&P | AH9: =AD6&AG10 -> AD308 | AK9: Monday | AM9: Monday | AO9: weeks | AP9: return | BL9: 1965-01-11 | BM9: 3.9 | BX9: =BX10 -> 1970-09-21 | BZ9: =BZ10 -> 81.91 | CD9: 10000 | CF9: =CD9/BZ9 -> 122.0852155
A10: DATE | B10: Friday | D10: ROC | E10: ROC | F10: ROCs | G10: for | H10: EMA | I10: preceeding | J10: EMA | K10: EMA = | N10: Monday | O10: Sell | U10: or until period from last signal is a maximum of | V10: 48 | W10: weeks | X10: =VLOOKUP(1,W$288:AG14999,11,FALSE) -> 308 | Y10: =INDIRECT($A$6&X10) -> 1970-09-18 | Z10: =INDIRECT($N$1&X10) -> 81.91 | AB10: =$A$6&AG10 -> A308 | AC10: =$N$1&AG10 -> N308 | AD10: =$A$6&AH10 -> A356 | AE10: =$N$1&AH10 -> N356 | AF10: =$P$1&AH10 -> P356 | AG10: =VLOOKUP("BUY",AC$288:AG$14999,5,FALSE) -> 308 | AH10: =IF(VLOOKUP("sell",AD$289:AH$14999,4,FALSE)<AG10,VLOOKUP("sell",INDIRECT(AH9):AH$14999,4,FALSE),VLOOKUP("sell",AD$289:AH$14999,4,FALSE)) -> 356 | AI10: 1 | AJ10: =INDIRECT(AB10) -> 1970-09-18 | AK10: 81.91 | AL10: 1971-08-20 | AM10: 99.34 | AN10: =(AM10-AK10)/AK10 -> 0.2127945306 | AO10: =(AL10-AJ10)/7 -> 48 | AP10: =XIRR(AR10:AS10,AT10:AU10) -> 0.2331584036 | AR10: =-AK10 -> -81.91 | AS10: =AM10 -> 99.34 | AT10: =AJ10 -> 1970-09-18 | AU10: =AL10 -> 1971-08-20 | BL10: 1965-01-12 | BM10: 3.9 | BU10: =-AK10 -> -81.91 | BV10: =AM10 -> 99.34 | BX10: =AJ10+3 -> 1970-09-21 | BY10: =AL10 -> 1971-08-20 | BZ10: =AK10 -> 81.91 | CA10: =BV10 -> 99.34 | CC10: =CD9/BZ10 -> 122.0852155 | CD10: =CA10*CC10 -> 12127.94531 | CJ10: ROC
A11: 1965-01-08 | B11: 85.37 | C11: 1 | D11: 57 | E11: 38 | G11: 32 | H11: 8 | I11: 16 | K11: 0.03 | L11: 0.004 | M11: 20 | N11: 85.4 | X11: =VLOOKUP(1,INDIRECT(addr(X10+1,$W$6)):$AG$14999,11,FALSE) -> 357 | Y11: =INDIRECT($A$6&X11) -> 1971-08-27 | Z11: =INDIRECT($N$1&X11) -> 99.52 | AB11: =$A$6&AG11 -> A357 | AC11: N357 | AD11: =$A$6&AH11 -> A405 | AE11: N405 | AF11: P405 | AG11: =VLOOKUP("BUY",INDIRECT(addr(AG10+1,$AC$6)):$AG$11864,5,FALSE) -> 357 | AH11: =VLOOKUP("sell",INDIRECT(addr(AH10+1,$AD$6)):$AG$11864,4,FALSE) -> 405 | AI11: =AI10+1 -> 2 | AJ11: 1971-08-27 | AK11: 99.52 | AL11: 1972-07-28 | AM11: 107.39 | AN11: =(AM11-AK11)/AK11 -> 0.07907958199 | AO11: =(AL11-AJ11)/7 -> 48 | AP11: =XIRR(AR11:AS11,AT11:AU11) -> 0.08619126379 | AR11: =-AK11 -> -99.52 | AS11: =AM11 -> 107.39 | AT11: =AJ11 -> 1971-08-27 | AU11: =AL11 -> 1972-07-28 | BL11: 1965-01-13 | BM11: 3.9 | BN11: =A11 -> 1965-01-08 | BO11: =VLOOKUP(BN11,$BL$4:$BM$12999,2) -> 3.9 | BP11: =1+BO11/$BP$3/100 -> 1.000747449 | BU11: =-AK11 -> -99.52 | BV11: =AM11 -> 107.39 | BX11: =IF(ISNUMBER(AJ11+3),AJ11+3,"-") -> 1971-08-30 | BY11: =AL11 -> 1972-07-28 | BZ11: 99.52 | CA11: =BV11 -> 107.39 | CC11: =CD10/BZ11*CE11 -> 121.8644022 | CD11: 13087.01815 | CE11: =VLOOKUP(CH11-7,$BN$11:$BQ$2999,4) -> 1 | CG11: =AL10 -> 1971-08-20 | CH11: =AJ11 -> 1971-08-27 | CJ11: 52 | CK11: 260 | CN11: 0 | CR11: 1965-01-08 | CS11: 85.37 | CU11: 1965-01-11 | CV11: 85.4
A12: 1965-01-15 | B12: 86.21 | D12: weeks | E12: weeks | G12: weeks | H12: weeks | I12: weeks | N12: 86.49 | X12: =VLOOKUP(1,INDIRECT(addr(X11+1,$W$6)):$AG$14999,11,FALSE) -> 414 | Y12: 1972-09-29 | Z12: 110.16 | AB12: A414 | AC12: N414 | AD12: A470 | AE12: N470 | AF12: P470 | AG12: =VLOOKUP("BUY",INDIRECT(addr(AG11+1,$AC$6)):$AG$11864,5,FALSE) -> 414 | AH12: =VLOOKUP("sell",INDIRECT(addr(AH11+1,$AD$6)):$AG$11864,4,FALSE) -> 470 | AI12: =AI11+1 -> 3 | AJ12: =IF(OR(INDIRECT(AB12)=AJ11,AJ11="-"),"-",INDIRECT(AB12)) -> 1972-09-29 | AK12: =IF(AJ12="-","-",INDIRECT(AC12)) -> 110.16 | AL12: =IF(AJ12="-","-",INDIRECT(AD12)) -> 1973-10-26 | AM12: =IF(AJ12="-","-",INDIRECT(AE12)) -> 111.15 | AN12: =IF(AJ12="-","-",(AM12-AK12)/AK12) -> 0.008986928105 | AO12: =IF(AJ12="-","-",(AL12-AJ12)/7) -> 56 | AP12: =IF(AJ12="-","-",XIRR(AR12:AS12,AT12:AU12)) -> 0.008365347981 | AR12: -110.16 | AS12: 111.15 | AT12: 1972-09-29 | AU12: 1973-10-26 | BL12: 1965-01-14 | BM12: 3.9 | BN12: =A12 -> 1965-01-15 | BO12: 3.9 | BP12: =1+BO12/$BP$3/100 -> 1.000747449 | BU12: =-AK12 -> -110.16 | BV12: 111.15 | BX12: 1972-10-02 | BY12: 1973-10-26 | BZ12: 110.16 | CA12: 111.15 | CC12: 119.6836381 | CD12: 13302.83638 | CE12: 1.00743725 | CG12: 1972-07-28 | CH12: 1972-09-29 | CJ12: weeks | CN12: =$CN$11 -> 0 | CR12: 1965-01-15 | CS12: 86.21 | CU12: 1965-01-18 | CV12: 86.49
A13: 1965-01-22 | B13: 86.74 | H13: of WMA | N13: 86.86 | R13: investmnt | S13: weeks from | T13: buy | U13: prevailing | V13: % return from | X13: =VLOOKUP(1,INDIRECT(addr(X12+1,$W$6)):$AG$14999,11,FALSE) -> 422 | Y13: 1972-11-24 | Z13: 116.72 | AB13: A537 | AC13: N537 | AD13: A642 | AE13: N642 | AF13: P642 | AG13: =VLOOKUP("BUY",INDIRECT(addr(AG12+1,$AC$6)):$AG$11864,5,FALSE) -> 537 | AH13: =IF(ISNUMBER(VLOOKUP("sell",INDIRECT(addr(AH12+1,$AD$6)):$AG$14002,4,FALSE)),VLOOKUP("sell",INDIRECT(addr(AH12+1,$AD$6)):$AG$14002,4,FALSE),AH12) -> 642 | AI13: 4 | AJ13: 1975-02-07 | AK13: 78.36 | AL13: 1977-02-11 | AM13: 100.74 | AN13: 0.2856049005 | AO13: 105 | AP13: 0.1328767002 | AR13: -78.36 | AS13: 100.74 | AT13: 1975-02-07 | AU13: 1977-02-11 | BL13: 1965-01-15 | BM13: 3.9 | BN13: 1965-01-22 | BO13: 3.9 | BP13: 1.000747449 | BU13: =-AK13 -> -78.36 | BV13: 100.74 | BX13: 1975-02-10 | BY13: 1977-02-11 | BZ13: 78.36 | CA13: 100.74 | CC13: 193.0697461 | CD13: 19449.84622 | CE13: 1.137272148 | CG13: 1973-10-26 | CH13: 1975-02-07 | CN13: 0 | CR13: 1965-01-22 | CS13: 86.74 | CU13: 1965-01-25 | CV13: 86.86
A14: 1965-01-29 | B14: 87.56 | C14: =AVERAGE(INDIRECT($B$6&ROW()-$C$11+1):B14) -> 87.56 | H14: =2/($H$11+1) -> 0.2222222222 | N14: 87.58 | R14: Value | S14: most recent | T14: price | U14: price | V14: most recent | W14: number of | X14: =VLOOKUP(1,INDIRECT(addr(X13+1,$W$6)):$AG$14999,11,FALSE) -> 537 | Y14: 1975-02-07 | Z14: 78.36 | AB14: A706 | AC14: N706 | AD14: A868 | AE14: N868 | AF14: P868 | AG14: =IF(ISNUMBER(VLOOKUP("BUY",INDIRECT(addr(AG13+1,$AC$6)):$AG$11864,5,FALSE)),VLOOKUP("BUY",INDIRECT(addr(AG13+1,$AC$6)):$AG$11864,5,FALSE),AG13) -> 706 | AH14: =IF(ISNUMBER(VLOOKUP("sell",INDIRECT(addr(AH13+1,$AD$6)):$AG$14002,4,FALSE)),VLOOKUP("sell",INDIRECT(addr(AH13+1,$AD$6)):$AG$14002,4,FALSE),$AH$3) -> 868 | AI14: 5 | AJ14: 1978-05-05 | AK14: 96.19 | AL14: 1981-06-12 | AM14: 133.61 | AN14: 0.3890217278 | AO14: 162 | AP14: 0.1115619838 | AR14: -96.19 | AS14: 133.61 | AT14: 1978-05-05 | AU14: 1981-06-12 | BL14: 1965-01-18 | BM14: 3.9 | BN14: 1965-01-29 | BO14: 3.9 | BP14: 1.000747449 | BU14: =-AK14 -> -96.19 | BV14: 133.61 | BX14: 1978-05-08 | BY14: 1981-06-12 | BZ14: 96.19 | CA14: 133.61 | CC14: 217.3138322 | CD14: 29035.30112 | CE14: 1.074734333 | CG14: 1977-02-11 | CH14: 1978-05-05 | CN14: 0 | CR14: 1965-01-29 | CS14: 87.56 | CU14: 1965-02-01 | CV14: 87.58
A15: 1965-02-05 | B15: 87.29 | C15: =AVERAGE(INDIRECT($B$6&ROW()-$C$11+1):B15) -> 87.29 | D15: 59 | E15: 43 | G15: 36 | H15: 12 | I15: 25 | K15: 0.04 | L15: 0.0001 | N15: 86.95 | R15: from | S15: Coppock | T15: Monday | U15: Monday | V15: Coppock | W15: Coppock | X15: =VLOOKUP(1,INDIRECT(addr(X14+1,$W$6)):$AG$14999,11,FALSE) -> 581 | Y15: 1975-12-12 | Z15: 88.09 | AB15: A933 | AC15: N933 | AD15: A973 | AE15: N973 | AF15: P973 | AG15: =IF(ISNUMBER(VLOOKUP("BUY",INDIRECT(addr(AG14+1,$AC$6)):$AG$11864,5,FALSE)),VLOOKUP("BUY",INDIRECT(addr(AG14+1,$AC$6)):$AG$11864,5,FALSE),AG14) -> 933 | AH15: =IF(ISNUMBER(VLOOKUP("sell",INDIRECT(addr(AH14+1,$AD$6)):$AG$14002,4,FALSE)),VLOOKUP("sell",INDIRECT(addr(AH14+1,$AD$6)):$AG$14002,4,FALSE),$AH$3) -> 973 | AI15: 6 | AJ15: 1982-09-10 | AK15: 122.24 | AL15: 1983-06-17 | AM15: 169.02 | AN15: 0.3826897906 | AO15: 40 | AP15: 0.5256143749 | AR15: -122.24 | AS15: 169.02 | AT15: 1982-09-10 | AU15: 1983-06-17 | BL15: 1965-01-19 | BM15: 3.9 | BN15: 1965-02-05 | BO15: 3.98 | BP15: 1.000762781 | BU15: =IF(ISNUMBER(-AK15),-AK15,"-") -> -122.24 | BV15: 169.02 | BX15: 1982-09-13 | BY15: 1983-06-17 | BZ15: 122.24 | CA15: 169.02 | CC15: 283.9185778 | CD15: 47987.91802 | CE15: 1.195310729 | CG15: 1981-06-12 | CH15: 1982-09-10 | CN15: 0 | CR15: 1965-02-05 | CS15: 87.29 | CU15: 1965-02-08 | CV15: 86.95
A16: 1965-02-12 | B16: 86.17 | C16: =AVERAGE(INDIRECT($B$6&ROW()-$C$11+1):B16) -> 86.17 | G16: max is 48 | N16: 86.07 | R16: =T2 -> 1970-09-21 | S16: buy signal | V16: buy signal | W16: buy signal | X16: =VLOOKUP(1,INDIRECT(addr(X15+1,$W$6)):$AG$14999,11,FALSE) -> 594 | Y16: 1976-03-12 | Z16: 99.8 | AB16: A980 | AC16: N980 | AD16: A1034 | AE16: N1034 | AF16: P1034 | AG16: =IF(ISNUMBER(VLOOKUP("BUY",INDIRECT(addr(AG15+1,$AC$6)):$AG$11864,5,FALSE)),VLOOKUP("BUY",INDIRECT(addr(AG15+1,$AC$6)):$AG$11864,5,FALSE),AG15) -> 980 | AH16: =IF(ISNUMBER(VLOOKUP("sell",INDIRECT(addr(AH15+1,$AD$6)):$AG$14002,4,FALSE)),VLOOKUP("sell",INDIRECT(addr(AH15+1,$AD$6)):$AG$14002,4,FALSE),$AH$3) -> 1034 | AI16: 7 | AJ16: 1983-08-05 | AK16: 159.18 | AL16: 1984-08-17 | AM16: 164.94 | AN16: 0.03618545043 | AO16: 54 | AP16: 0.03491950333 | AR16: -159.18 | AS16: 164.94 | AT16: 1983-08-05 | AU16: 1984-08-17 | BL16: 1965-01-20 | BM16: 3.9 | BN16: 1965-02-12 | BO16: 3.98 | BP16: 1.000762781 | BU16: -159.18 | BV16: 164.94 | BX16: 1983-08-08 | BY16: 1984-08-17 | BZ16: 159.18 | CA16: 164.94 | CC16: 304.7096645 | CD16: 50258.81207 | CE16: 1.010747838 | CG16: 1983-06-17 | CH16: 1983-08-05 | CN16: 0 | CR16: 1965-02-12 | CS16: 86.17 | CU16: 1965-02-15 | CV16: 86.07
A17: 1965-02-19 | B17: 86.21 | C17: =AVERAGE(INDIRECT($B$6&ROW()-$C$11+1):B17) -> 86.21 | N17: 86.21 | W17: =R15 -> from | X17: =VLOOKUP(1,INDIRECT(addr(X16+1,$W$6)):$AG$14999,11,FALSE) -> 706 | Y17: 1978-05-05 | Z17: 96.19 | AB17: A1040 | AC17: N1040 | AD17: A1088 | AE17: N1088 | AF17: P1088 | AG17: =IF(ISNUMBER(VLOOKUP("BUY",INDIRECT(addr(AG16+1,$AC$6)):$AG$11864,5,FALSE)),VLOOKUP("BUY",INDIRECT(addr(AG16+1,$AC$6)):$AG$11864,5,FALSE),AG16) -> 1040 | AH17: =IF(ISNUMBER(VLOOKUP("sell",INDIRECT(addr(AH16+1,$AD$6)):$AG$14002,4,FALSE)),VLOOKUP("sell",INDIRECT(addr(AH16+1,$AD$6)):$AG$14002,4,FALSE),$AH$3) -> 1088 | AI17: 8 | AJ17: 1984-09-28 | AK17: 164.62 | AL17: 1985-08-30 | AM17: 188.63 | AN17: 0.1458510509 | AO17: 48 | AP17: 0.1593951881 | AR17: -164.62 | AS17: 188.63 | AT17: 1984-09-28 | AU17: 1985-08-30 | BL17: 1965-01-21 | BM17: 3.9 | BN17: 1965-02-19 | BO17: 3.98 | BP17: 1.000762781 | BU17: -164.62 | BV17: 188.63 | BX17: 1984-10-01 | BY17: 1985-08-30 | BZ17: 164.62 | CA17: 188.63 | CC17: 308.6624077 | CD17: 58222.98997 | CE17: 1.011006896 | CG17: 1984-08-17 | CH17: 1984-09-28 | CN17: 0 | CR17: 1965-02-19 | CS17: 86.21 | CU17: 1965-02-22 | CV17: 86.21
A18: 1965-02-26 | B18: 87.43 | C18: =AVERAGE(INDIRECT($B$6&ROW()-$C$11+1):B18) -> 87.43 | N18: 87.25 | U18: max row V is | V18: =MAX(V24:V4999) -> 0.386861911 | W18: =R16 -> 1970-09-21 | X18: =VLOOKUP(1,INDIRECT(addr(X17+1,$W$6)):$AG$14999,11,FALSE) -> 739 | Y18: 1978-12-22 | Z18: 96.31 | AB18: A1090 | AC18: N1090 | AD18: A1222 | AE18: N1222 | AF18: P1222 | AG18: =IF(ISNUMBER(VLOOKUP("BUY",INDIRECT(addr(AG17+1,$AC$6)):$AG$14002,5,FALSE)),VLOOKUP("BUY",INDIRECT(addr(AG17+1,$AC$6)):$AG$14002,5,FALSE),AG17) -> 1090 | AH18: =IF(ISNUMBER(VLOOKUP("sell",INDIRECT(addr(AH17+1,$AD$6)):$AG$14002,4,FALSE)),VLOOKUP("sell",INDIRECT(addr(AH17+1,$AD$6)):$AG$14002,4,FALSE),$AH$3) -> 1222 | AI18: 9 | AJ18: 1985-09-13 | AK18: 182.88 | AL18: 1988-03-25 | AM18: 258.06 | AN18: 0.4110892388 | AO18: 132 | AP18: 0.1457167327 | AR18: -182.88 | AS18: 258.06 | AT18: 1985-09-13 | AU18: 1988-03-25 | BL18: 1965-01-22 | BM18: 3.9 | BN18: 1965-02-26 | BO18: 3.98 | BP18: 1.000762781 | BU18: -182.88 | BV18: 258.06 | BX18: 1985-09-16 | BY18: 1988-03-25 | BZ18: 182.88 | CA18: 258.06 | CC18: =CD17/BZ18*CE18 -> 318.850429 | CD18: =CA18*CC18 -> 82282.54171 | CE18: 1.001517897 | CG18: 1985-08-30 | CH18: 1985-09-13 | CN18: 0 | CR18: 1965-02-26 | CS18: 87.43 | CU18: 1965-03-01 | CV18: 87.25
A19: 1965-03-05 | B19: 86.8 | C19: =AVERAGE(INDIRECT($B$6&ROW()-$C$11+1):B19) -> 86.8 | D19: 59 | E19: 42 | G19: 38 | H19: 16 | I19: 28 | K19: 0.09 | L19: 0.001 | N19: 86.83 | W19: =SUM(W306:W4999) -> 55 | X19: =VLOOKUP(1,INDIRECT(addr(X18+1,$W$6)):$AG$14999,11,FALSE) -> 758 | Y19: 1979-05-04 | Z19: 99.02 | AB19: A1239 | AC19: N1239 | AD19: A1287 | AE19: N1287 | AF19: P1287 | AG19: =IF(ISNUMBER(VLOOKUP("BUY",INDIRECT(addr(AG18+1,$AC$6)):$AG$14002,5,FALSE)),VLOOKUP("BUY",INDIRECT(addr(AG18+1,$AC$6)):$AG$14002,5,FALSE),AG18) -> 1239 | AH19: =IF(ISNUMBER(VLOOKUP("sell",INDIRECT(addr(AH18+1,$AD$6)):$AG$14002,4,FALSE)),VLOOKUP("sell",INDIRECT(addr(AH18+1,$AD$6)):$AG$14002,4,FALSE),$AH$3) -> 1287 | AI19: 10 | AJ19: 1988-07-22 | AK19: 264.68 | AL19: 1989-06-23 | AM19: 326.6 | AN19: 0.2339428744 | AO19: 48 | AP19: 0.2565352857 | AR19: -264.68 | AS19: 326.6 | AT19: 1988-07-22 | AU19: 1989-06-23 | BL19: 1965-01-25 | BM19: 3.9 | BN19: 1965-03-05 | BO19: 4.04 | BP19: 1.000774281 | BU19: -264.68 | BV19: 326.6 | BX19: 1988-07-25 | BY19: 1989-06-23 | BZ19: 264.68 | CA19: 326.6 | CC19: =CD18/BZ19*CE19 -> 317.8517616 | CD19: =CA19*CC19 -> 103810.3853 | CE19: 1.022440514 | CG19: 1988-03-25 | CH19: 1988-07-22 | CN19: 0 | CR19: 1965-03-05 | CS19: 86.8 | CU19: 1965-03-08 | CV19: 86.83
A20: 1965-03-12 | B20: 87.21 | C20: =AVERAGE(INDIRECT($B$6&ROW()-$C$11+1):B20) -> 87.21 | N20: 87.24 | X20: =VLOOKUP(1,INDIRECT(addr(X19+1,$W$6)):$AG$14999,11,FALSE) -> 773 | Y20: 1979-08-17 | Z20: 108.83 | AB20: A1306 | AC20: N1306 | AD20: A1354 | AE20: N1354 | AF20: P1354 | AG20: =IF(ISNUMBER(VLOOKUP("BUY",INDIRECT(addr(AG19+1,$AC$6)):$AG$14002,5,FALSE)),VLOOKUP("BUY",INDIRECT(addr(AG19+1,$AC$6)):$AG$14002,5,FALSE),AG19) -> 1306 | AH20: =IF(ISNUMBER(VLOOKUP("sell",INDIRECT(addr(AH19+1,$AD$6)):$AG$14002,4,FALSE)),VLOOKUP("sell",INDIRECT(addr(AH19+1,$AD$6)):$AG$14002,4,FALSE),$AH$3) -> 1354 | AI20: 11 | AJ20: 1989-11-03 | AK20: 332.61 | AL20: 1990-10-05 | AM20: 313.48 | AN20: -0.05751480713 | AO20: 48 | AP20: -0.06232101619 | AR20: =-AK20 -> -332.61 | AS20: =AM20 -> 313.48 | AT20: =AJ20 -> 1989-11-03 | AU20: =AL20 -> 1990-10-05 | BL20: 1965-01-26 | BM20: 3.9 | BN20: 1965-03-12 | BO20: 4.04 | BP20: 1.000774281 | BU20: -332.61 | BV20: 313.48 | BX20: 1989-11-06 | BY20: 1990-10-05 | BZ20: 332.61 | CA20: 313.48 | CC20: =IF(ISNUMBER(CD19/BZ20*CE20),CD19/BZ20*CE20,"-") -> 322.003727 | CD20: =IF(ISNUMBER(CA20*CC20),CA20*CC20,"-") -> 100941.7283 | CE20: =IF(ISNUMBER(VLOOKUP(CH20-7,$BN$11:$BQ$2999,4)),VLOOKUP(CH20-7,$BN$11:$BQ$2999,4),"-") -> 1.031704673 | CG20: 1989-06-23 | CH20: 1989-11-03 | CN20: 0 | CR20: 1965-03-12 | CS20: 87.21 | CU20: 1965-03-15 | CV20: 87.24
A21: 1965-03-19 | B21: 86.84 | C21: =AVERAGE(INDIRECT($B$6&ROW()-$C$11+1):B21) -> 86.84 | N21: 86.83 | X21: =VLOOKUP(1,INDIRECT(addr(X20+1,$W$6)):$AG$14999,11,FALSE) -> 791 | Y21: 1979-12-21 | Z21: 107.66 | AB21: A1374 | AC21: N1374 | AD21: A1518 | AE21: N1518 | AF21: P1518 | AG21: =IF(ISNUMBER(VLOOKUP("BUY",INDIRECT(addr(AG20+1,$AC$6)):$AG$14002,5,FALSE)),VLOOKUP("BUY",INDIRECT(addr(AG20+1,$AC$6)):$AG$14002,5,FALSE),AG20) -> 1374 | AH21: =IF(ISNUMBER(VLOOKUP("sell",INDIRECT(addr(AH20+1,$AD$6)):$AG$14002,4,FALSE)),VLOOKUP("sell",INDIRECT(addr(AH20+1,$AD$6)):$AG$14002,4,FALSE),$AH$3) -> 1518 | AI21: 12 | AJ21: =IF(OR(INDIRECT(AB21)=AJ20,AJ20="-"),"-",INDIRECT(AB21)) -> 1991-02-22 | AK21: =IF(AJ21="-","-",INDIRECT(AC21)) -> 367.26 | AL21: =IF(AJ21="-","-",INDIRECT(AD21)) -> 1993-11-26 | AM21: =IF(AJ21="-","-",INDIRECT(AE21)) -> 461.9 | AN21: =IF(AJ21="-","-",(AM21-AK21)/AK21) -> 0.2576920982 | AO21: =IF(AJ21="-","-",(AL21-AJ21)/7) -> 144 | AP21: 0.08656617701 | AR21: -367.26 | AS21: 461.9 | AT21: 1991-02-22 | AU21: 1993-11-26 | BL21: 1965-01-27 | BM21: 3.9 | BN21: 1965-03-19 | BO21: 4.04 | BP21: 1.000774281 | BU21: -367.26 | BV21: 461.9 | BX21: 1991-02-25 | BY21: 1993-11-26 | BZ21: 367.26 | CA21: 461.9 | CC21: 282.1309294 | CD21: 130316.2763 | CE21: 1.026487329 | CG21: 1990-10-05 | CH21: 1991-02-22 | CN21: 0 | CR21: 1965-03-19 | CS21: 86.84 | CU21: 1965-03-22 | CV21: 86.83
A22: 1965-03-26 | B22: 86.2 | C22: =AVERAGE(INDIRECT($B$6&ROW()-$C$11+1):B22) -> 86.2 | N22: 86.03 | X22: =VLOOKUP(1,INDIRECT(addr(X21+1,$W$6)):$AG$14999,11,FALSE) -> 803 | Y22: 1980-03-14 | Z22: 102.26 | AB22: A1580 | AC22: N1580 | AD22: A1628 | AE22: N1628 | AF22: P1628 | AG22: =IF(ISNUMBER(VLOOKUP("BUY",INDIRECT(addr(AG21+1,$AC$6)):$AG$14002,5,FALSE)),VLOOKUP("BUY",INDIRECT(addr(AG21+1,$AC$6)):$AG$14002,5,FALSE),AG21) -> 1580 | AH22: =IF(ISNUMBER(VLOOKUP("sell",INDIRECT(addr(AH21+1,$AD$6)):$AG$14002,4,FALSE)),VLOOKUP("sell",INDIRECT(addr(AH21+1,$AD$6)):$AG$14002,4,FALSE),$AH$3) -> 1628 | AI22: 13 | AJ22: 1995-02-03 | AK22: 481.14 | AL22: 1996-01-05 | AM22: 618.46 | AN22: 0.2854054953 | AO22: 48 | AP22: 0.3135643542 | AR22: -481.14 | AS22: 618.46 | AT22: 1995-02-03 | AU22: 1996-01-05 | BL22: 1965-01-28 | BM22: 3.9 | BN22: 1965-03-26 | BO22: 4.04 | BP22: 1.000774281 | BU22: -481.14 | BV22: 618.46 | BX22: 1995-02-06 | BY22: 1996-01-05 | BZ22: 481.14 | CA22: 618.46 | CC22: 284.4768982 | CD22: 175937.5825 | CE22: 1.050315576 | CG22: 1993-11-26 | CH22: 1995-02-03 | CN22: 0 | CR22: 1965-03-26 | CS22: 86.2 | CU22: 1965-03-29 | CV22: 86.03
A23: 1965-04-02 | B23: 86.53 | C23: =AVERAGE(INDIRECT($B$6&ROW()-$C$11+1):B23) -> 86.53 | N23: 86.53 | X23: =VLOOKUP(1,INDIRECT(addr(X22+1,$W$6)):$AG$14999,11,FALSE) -> 820 | Y23: 1980-07-11 | Z23: 120.01 | AB23: A1638 | AC23: N1638 | AD23: A1686 | AE23: N1686 | AF23: P1686 | AG23: =IF(ISNUMBER(VLOOKUP("BUY",INDIRECT(addr(AG22+1,$AC$6)):$AG$14002,5,FALSE)),VLOOKUP("BUY",INDIRECT(addr(AG22+1,$AC$6)):$AG$14002,5,FALSE),AG22) -> 1638 | AH23: =IF(ISNUMBER(VLOOKUP("sell",INDIRECT(addr(AH22+1,$AD$6)):$AG$14002,4,FALSE)),VLOOKUP("sell",INDIRECT(addr(AH22+1,$AD$6)):$AG$14002,4,FALSE),$AH$3) -> 1686 | AI23: 14 | AJ23: 1996-03-15 | AK23: 652.65 | AL23: 1997-02-14 | AM23: 808.48 | AN23: 0.2387650349 | AO23: 48 | AP23: 0.2618704498 | AR23: -652.65 | AS23: 808.48 | AT23: 1996-03-15 | AU23: 1997-02-14 | BL23: 1965-01-29 | BM23: 3.9 | BN23: 1965-04-02 | BO23: 4.09 | BP23: 1.000783863 | BU23: -652.65 | BV23: 808.48 | BX23: 1996-03-18 | BY23: 1997-02-14 | BZ23: 652.65 | CA23: 808.48 | CC23: 272.0642474 | CD23: 219958.5028 | CE23: 1.009237075 | CG23: 1996-01-05 | CH23: 1996-03-15 | CN23: 0 | CR23: 1965-04-02 | CS23: 86.53 | CU23: 1965-04-05 | CV23: 86.53
A24: 1965-04-09 | B24: 87.56 | C24: =AVERAGE(INDIRECT($B$6&ROW()-$C$11+1):B24) -> 87.56 | N24: 87.94 | X24: =VLOOKUP(1,INDIRECT(addr(X23+1,$W$6)):$AG$14999,11,FALSE) -> 933 | Y24: 1982-09-10 | Z24: 122.24 | AB24: =$A$6&AG24 -> A1692 | AC24: =$N$1&AG24 -> N1692 | AD24: =$A$6&AH24 -> A1836 | AE24: =$N$1&AH24 -> N1836 | AF24: =$P$1&AH24 -> P1836 | AG24: =IF(ISNUMBER(VLOOKUP("BUY",INDIRECT(addr(AG23+1,$AC$6)):$AG$14002,5,FALSE)),VLOOKUP("BUY",INDIRECT(addr(AG23+1,$AC$6)):$AG$14002,5,FALSE),AG23) -> 1692 | AH24: =IF(ISNUMBER(VLOOKUP("sell",INDIRECT(addr(AH23+1,$AD$6)):$AG$14002,4,FALSE)),VLOOKUP("sell",INDIRECT(addr(AH23+1,$AD$6)):$AG$14002,4,FALSE),$AH$3) -> 1836 | AI24: 15 | AJ24: 1997-03-28 | AK24: 757.12 | AL24: 1999-12-31 | AM24: 1455.22 | AN24: 0.9220467033 | AO24: 144 | AP24: 0.2669276774 | AR24: -757.12 | AS24: 1455.22 | AT24: 1997-03-28 | AU24: 1999-12-31 | BL24: 1965-02-01 | BM24: 3.98 | BN24: 1965-04-09 | BO24: 4.09 | BP24: 1.000783863 | BU24: -757.12 | BV24: 1455.22 | BX24: 1997-03-31 | BY24: 1999-12-31 | BZ24: 757.12 | CA24: 1455.22 | CC24: 291.984524 | CD24: 424901.7191 | CE24: 1.005041042 | CG24: 1997-02-14 | CH24: 1997-03-28 | CN24: 0 | CR24: 1965-04-09 | CS24: 87.56 | CU24: 1965-04-12 | CV24: 87.94
A25: 1965-04-16 | B25: 88.15 | C25: =AVERAGE(INDIRECT($B$6&ROW()-$C$11+1):B25) -> 88.15 | N25: 88.51 | X25: =VLOOKUP(1,INDIRECT(addr(X24+1,$W$6)):$AG$14999,11,FALSE) -> 980 | Y25: 1983-08-05 | Z25: 159.18 | AB25: A1938 | AC25: N1938 | AD25: =$A$6&AH25 -> A1986 | AE25: N1986 | AF25: P1986 | AG25: =IF(ISNUMBER(VLOOKUP("BUY",INDIRECT(addr(AG24+1,$AC$6)):$AG$14002,5,FALSE)),VLOOKUP("BUY",INDIRECT(addr(AG24+1,$AC$6)):$AG$14002,5,FALSE),AG24) -> 1938 | AH25: =IF(ISNUMBER(VLOOKUP("sell",INDIRECT(addr(AH24+1,$AD$6)):$AG$14002,4,FALSE)),VLOOKUP("sell",INDIRECT(addr(AH24+1,$AD$6)):$AG$14002,4,FALSE),$AH$3) -> 1986 | AI25: 16 | AJ25: 2001-12-14 | AK25: 1134.36 | AL25: 2002-11-15 | AM25: 900.36 | AN25: -0.2062837195 | AO25: 48 | AP25: -0.2219536938 | AR25: -1134.36 | AS25: 900.36 | AT25: 2001-12-14 | AU25: 2002-11-15 | BL25: 1965-02-02 | BM25: 3.98 | BN25: 1965-04-16 | BO25: 4.09 | BP25: 1.000783863 | BU25: -1134.36 | BV25: 900.36 | BX25: 2001-12-17 | BY25: 2002-11-15 | BZ25: 1134.36 | CA25: 900.36 | CC25: 413.9442801 | CD25: 372698.872 | CE25: 1.105106928 | CG25: 1999-12-31 | CH25: 2001-12-14 | CN25: 0 | CR25: 1965-04-16 | CS25: 88.15 | CU25: 1965-04-19 | CV25: 88.51
A26: 1965-04-23 | B26: 88.88 | C26: =AVERAGE(INDIRECT($B$6&ROW()-$C$11+1):B26) -> 88.88 | N26: 88.89 | X26: =VLOOKUP(1,INDIRECT(addr(X25+1,$W$6)):$AG$14999,11,FALSE) -> 986 | Y26: 1983-09-16 | Z26: 167.62 | AB26: A2005 | AC26: N2005 | AD26: =$A$6&AH26 -> A2053 | AE26: N2053 | AF26: P2053 | AG26: =IF(ISNUMBER(VLOOKUP("BUY",INDIRECT(addr(AG25+1,$AC$6)):$AG$14002,5,FALSE)),VLOOKUP("BUY",INDIRECT(addr(AG25+1,$AC$6)):$AG$14002,5,FALSE),AG25) -> 2005 | AH26: =IF(ISNUMBER(VLOOKUP("sell",INDIRECT(addr(AH25+1,$AD$6)):$AG$14002,4,FALSE)),VLOOKUP("sell",INDIRECT(addr(AH25+1,$AD$6)):$AG$14002,4,FALSE),$AH$3) -> 2053 | AI26: 17 | AJ26: 2003-03-28 | AK26: 848.18 | AL26: 2004-02-27 | AM26: 1155.96 | AN26: 0.3628710887 | AO26: 48 | AP26: 0.3997791111 | AR26: -848.18 | AS26: 1155.96 | AT26: 2003-03-28 | AU26: 2004-02-27 | BL26: 1965-02-03 | BM26: 3.98 | BN26: 1965-04-23 | BO26: 4.09 | BP26: 1.000783863 | BU26: -848.18 | BV26: 1155.96 | BX26: 2003-03-31 | BY26: 2004-02-27 | BZ26: 848.18 | CA26: 1155.96 | CC26: 441.3088065 | CD26: 510135.328 | CE26: 1.004320999 | CG26: 2002-11-15 | CH26: 2003-03-28 | CN26: 0 | CR26: 1965-04-23 | CS26: 88.88 | CU26: 1965-04-26 | CV26: 88.89
A27: 1965-04-30 | B27: 89.11 | C27: =AVERAGE(INDIRECT($B$6&ROW()-$C$11+1):B27) -> 89.11 | N27: 89.23 | X27: =VLOOKUP(1,INDIRECT(addr(X26+1,$W$6)):$AG$14999,11,FALSE) -> 1040 | Y27: 1984-09-28 | Z27: 164.62 | AB27: A2063 | AC27: N2063 | AD27: =$A$6&AH27 -> A2111 | AE27: N2111 | AF27: P2111 | AG27: =IF(ISNUMBER(VLOOKUP("BUY",INDIRECT(addr(AG26+1,$AC$6)):$AG$14002,5,FALSE)),VLOOKUP("BUY",INDIRECT(addr(AG26+1,$AC$6)):$AG$14002,5,FALSE),AG26) -> 2063 | AH27: =IF(ISNUMBER(VLOOKUP("sell",INDIRECT(addr(AH26+1,$AD$6)):$AG$14002,4,FALSE)),VLOOKUP("sell",INDIRECT(addr(AH26+1,$AD$6)):$AG$14002,4,FALSE),$AH$3) -> 2111 | AI27: 18 | AJ27: 2004-05-07 | AK27: 1087.12 | AL27: 2005-04-08 | AM27: 1181.21 | AN27: 0.08654978291 | AO27: 48 | AP27: 0.09436213076 | AR27: -1087.12 | AS27: 1181.21 | AT27: 2004-05-07 | AU27: 2005-04-08 | BL27: 1965-02-04 | BM27: 3.98 | BN27: 1965-04-30 | BO27: 4.09 | BP27: 1.000783863 | BU27: -1087.12 | BV27: 1181.21 | BX27: 2004-05-10 | BY27: 2005-04-08 | BZ27: 1087.12 | CA27: 1181.21 | CC27: 470.0639548 | CD27: 555244.244 | CE27: 1.001726206 | CG27: 2004-02-27 | CH27: 2004-05-07 | CN27: 0 | CR27: 1965-04-30 | CS27: 89.11 | CU27: 1965-05-03 | CV27: 89.23
A28: 1965-05-07 | B28: 89.85 | C28: =AVERAGE(INDIRECT($B$6&ROW()-$C$11+1):B28) -> 89.85 | N28: 89.66 | X28: =VLOOKUP(1,INDIRECT(addr(X27+1,$W$6)):$AG$14999,11,FALSE) -> 1090 | Y28: 1985-09-13 | Z28: 182.88 | AB28: A2126 | AC28: N2126 | AD28: =IF(ISNUMBER(INDIRECT($A$6&AH28)),$A$6&AH28,$A$6&$AH$3) -> A2184 | AE28: N2184 | AF28: P2184 | AG28: =IF(ISNUMBER(VLOOKUP("BUY",INDIRECT(addr(AG27+1,$AC$6)):$AG$14002,5,FALSE)),VLOOKUP("BUY",INDIRECT(addr(AG27+1,$AC$6)):$AG$14002,5,FALSE),AG27) -> 2126 | AH28: =IF(ISNUMBER(VLOOKUP("sell",INDIRECT(addr(AH27+1,$AD$6)):$AG$14002,4,FALSE)),VLOOKUP("sell",INDIRECT(addr(AH27+1,$AD$6)):$AG$14002,4,FALSE),$AH$3) -> 2184 | AI28: 19 | AJ28: 2005-07-22 | AK28: =IF(AJ28="-","-",INDIRECT(AC28)) -> 1229.03 | AL28: =IF(AJ28="-","-",INDIRECT(AD28)) -> 2006-09-01 | AM28: =IF(AJ28="-","-",INDIRECT(AE28)) -> 1311.01 | AN28: =IF(AJ28="-","-",(AM28-AK28)/AK28) -> 0.06670300969 | AO28: =IF(AJ28="-","-",(AL28-AJ28)/7) -> 58 | AP28: 0.05976980031 | AR28: -1229.03 | AS28: 1311.01 | AT28: 2005-07-22 | AU28: 2006-09-01 | BL28: 1965-02-05 | BM28: 3.98 | BN28: 1965-05-07 | BO28: 4.1 | BP28: 1.00078578 | BU28: -1229.03 | BV28: 1311.01 | BX28: 2005-07-25 | BY28: 2006-09-01 | BZ28: 1229.03 | CA28: 1311.01 | CC28: 455.4245171 | CD28: 597066.0962 | CE28: 1.008079598 | CG28: 2005-04-08 | CH28: 2005-07-22 | CN28: 0 | CR28: 1965-05-07 | CS28: 89.85 | CU28: 1965-05-10 | CV28: 89.66
A29: 1965-05-14 | B29: 90.1 | C29: =AVERAGE(INDIRECT($B$6&ROW()-$C$11+1):B29) -> 90.1 | F29: =IF(F30>1,F30-1,0) -> 0 | G29: =F29/$F$77 -> 0 | N29: 89.54 | X29: =VLOOKUP(1,INDIRECT(addr(X28+1,$W$6)):$AG$14999,11,FALSE) -> 1105 | Y29: 1985-12-27 | Z29: 210.68 | AB29: A2192 | AC29: N2192 | AD29: A2240 | AE29: N2240 | AF29: P2240 | AG29: =IF(ISNUMBER(VLOOKUP("BUY",INDIRECT(addr(AG28+1,$AC$6)):$AG$14002,5,FALSE)),VLOOKUP("BUY",INDIRECT(addr(AG28+1,$AC$6)):$AG$14002,5,FALSE),AG28) -> 2192 | AH29: =IF(ISNUMBER(VLOOKUP("sell",INDIRECT(addr(AH28+1,$AD$6)):$AG$14002,4,FALSE)),VLOOKUP("sell",INDIRECT(addr(AH28+1,$AD$6)):$AG$14002,4,FALSE),$AH$3) -> 2240 | AI29: 20 | AJ29: 2006-10-27 | AK29: =IF(AJ29="-","-",INDIRECT(AC29)) -> 1377.93 | AL29: =IF(AJ29="-","-",INDIRECT(AD29)) -> 2007-09-28 | AM29: =IF(AJ29="-","-",INDIRECT(AE29)) -> 1547.04 | AN29: =IF(AJ29="-","-",(AM29-AK29)/AK29) -> 0.1227275696 | AO29: =IF(AJ29="-","-",(AL29-AJ29)/7) -> 48 | AP29: 0.1340012848 | AR29: =-AK29 -> -1377.93 | AS29: =AM29 -> 1547.04 | AT29: =AJ29 -> 2006-10-27 | AU29: =AL29 -> 2007-09-28 | BL29: 1965-02-08 | BM29: 3.98 | BN29: 1965-05-14 | BO29: 4.1 | BP29: 1.00078578 | BU29: -1377.93 | BV29: 1547.04 | BX29: 2006-10-30 | BY29: 2007-09-28 | BZ29: 1377.93 | CA29: 1547.04 | CC29: 436.3676745 | CD29: 675078.2472 | CE29: 1.007064567 | CG29: 2006-09-01 | CH29: 2006-10-27 | CN29: 0 | CR29: 1965-05-14 | CS29: 90.1 | CU29: 1965-05-17 | CV29: 89.54
A30: 1965-05-21 | B30: 88.75 | C30: =AVERAGE(INDIRECT($B$6&ROW()-$C$11+1):B30) -> 88.75 | F30: 0 | G30: 0 | N30: 88.09 | X30: =VLOOKUP(1,INDIRECT(addr(X29+1,$W$6)):$AG$14999,11,FALSE) -> 1135 | Y30: 1986-07-25 | Z30: 236.01 | AB30: A2326 | AC30: N2326 | AD30: A2374 | AE30: N2374 | AF30: P2374 | AG30: =IF(ISNUMBER(VLOOKUP("BUY",INDIRECT(addr(AG29+1,$AC$6)):$AG$14002,5,FALSE)),VLOOKUP("BUY",INDIRECT(addr(AG29+1,$AC$6)):$AG$14002,5,FALSE),AG29) -> 2326 | AH30: =IF(ISNUMBER(VLOOKUP("sell",INDIRECT(addr(AH29+1,$AD$6)):$AG$14002,4,FALSE)),VLOOKUP("sell",INDIRECT(addr(AH29+1,$AD$6)):$AG$14002,4,FALSE),$AH$3) -> 2374 | AI30: 21 | AJ30: 2009-05-22 | AK30: 887 | AL30: 2010-04-23 | AM30: 1212.05 | AN30: 0.3664599775 | AO30: 48 | AP30: 0.4037837803 | AR30: =-AK30 -> -887 | AS30: =AM30 -> 1212.05 | AT30: =AJ30 -> 2009-05-22 | AU30: =AL30 -> 2010-04-23 | BL30: 1965-02-09 | BM30: 3.98 | BN30: 1965-05-21 | BO30: 4.1 | BP30: 1.00078578 | BU30: -887 | BV30: 1212.05 | BX30: 2009-05-25 | BY30: 2010-04-23 | BZ30: 887 | CA30: 1212.05 | CC30: 786.6546809 | CD30: 953464.806 | CE30: 1.033602704 | CG30: 2007-09-28 | CH30: 2009-05-22 | CN30: 0 | CR30: 1965-05-21 | CS30: 88.75 | CU30: 1965-05-24 | CV30: 88.09
A31: 1965-05-28 | B31: 88.42 | C31: =AVERAGE(INDIRECT($B$6&ROW()-$C$11+1):B31) -> 88.42 | F31: 0 | G31: 0 | N31: 88.42 | X31: =VLOOKUP(1,INDIRECT(addr(X30+1,$W$6)):$AG$14999,11,FALSE) -> 1167 | Y31: 1987-03-06 | Z31: 288.3 | AB31: A2377 | AC31: N2377 | AD31: A2619 | AE31: N2619 | AF31: P2619 | AG31: =IF(ISNUMBER(VLOOKUP("BUY",INDIRECT(addr(AG30+1,$AC$6)):$AG$14002,5,FALSE)),VLOOKUP("BUY",INDIRECT(addr(AG30+1,$AC$6)):$AG$14002,5,FALSE),AG30) -> 2377 | AH31: =IF(ISNUMBER(VLOOKUP("sell",INDIRECT(addr(AH30+1,$AD$6)):$AG$14002,4,FALSE)),VLOOKUP("sell",INDIRECT(addr(AH30+1,$AD$6)):$AG$14002,4,FALSE),$AH$3) -> 2619 | AI31: 22 | AJ31: 2010-05-14 | AK31: 1136.94 | AL31: 2015-01-01 | AM31: 2058.9 | AN31: 0.8109135047 | AO31: 241.8571429 | AP31: 0.1365828574 | AR31: =-AK31 -> -1136.94 | AS31: =AM31 -> 2058.9 | AT31: =AJ31 -> 2010-05-14 | AU31: =AL31 -> 2015-01-01 | BL31: 1965-02-10 | BM31: 3.98 | BN31: 1965-05-28 | BO31: 4.1 | BP31: 1.00078578 | BU31: -1136.94 | BV31: 2058.9 | BX31: 2010-05-17 | BY31: 2015-01-01 | BZ31: 1136.94 | CA31: 2058.9 | CC31: 838.6879707 | CD31: 1726774.663 | CE31: 1.000076663 | CG31: 2010-04-23 | CH31: 2010-05-14 | CN31: 0 | CR31: 1965-05-28 | CS31: 88.42 | CU31: 1965-05-31 | CV31: 88.42
A32: 1965-06-04 | B32: 87.11 | C32: =AVERAGE(INDIRECT($B$6&ROW()-$C$11+1):B32) -> 87.11 | F32: 0 | G32: 0 | N32: 86.88 | X32: =VLOOKUP(1,INDIRECT(addr(X31+1,$W$6)):$AG$14999,11,FALSE) -> 1174 | Y32: 1987-04-24 | Z32: 281.83 | AB32: A2691 | AC32: N2691 | AD32: A2739 | AE32: N2739 | AF32: P2739 | AG32: =IF(ISNUMBER(VLOOKUP("BUY",INDIRECT(addr(AG31+1,$AC$6)):$AG$14002,5,FALSE)),VLOOKUP("BUY",INDIRECT(addr(AG31+1,$AC$6)):$AG$14002,5,FALSE),AG31) -> 2691 | AH32: =IF(ISNUMBER(VLOOKUP("sell",INDIRECT(addr(AH31+1,$AD$6)):$AG$14002,4,FALSE)),VLOOKUP("sell",INDIRECT(addr(AH31+1,$AD$6)):$AG$14002,4,FALSE),$AH$3) -> 2739 | AI32: 23 | AJ32: 2016-05-19 | AK32: 2040.04 | AL32: 2017-04-20 | AM32: 2355.84 | AN32: 0.1548008863 | AO32: 48 | AP32: 0.1692357004 | AR32: -2040.04 | AS32: 2355.84 | AT32: 2016-05-19 | AU32: 2017-04-20 | BL32: 1965-02-11 | BM32: 3.98 | BN32: 1965-06-04 | BO32: 4.04 | BP32: 1.000774281 | BU32: -2040.04 | BV32: 2355.84 | BX32: =IF(ISNUMBER(AJ32+3),AJ32+3,"-") -> 2016-05-22 | BY32: 2017-04-20 | BZ32: 2040.04 | CA32: 2355.84 | CC32: 0 | CD32: 0 | CE32: 0 | CG32: 2015-01-01 | CH32: 2016-05-19 | CN32: 0 | CR32: 1965-06-04 | CS32: 87.11 | CU32: 1965-06-07 | CV32: 86.88
A33: 1965-06-11 | B33: 85.12 | C33: =AVERAGE(INDIRECT($B$6&ROW()-$C$11+1):B33) -> 85.12 | F33: 0 | G33: 0 | N33: 84.01 | X33: =VLOOKUP(1,INDIRECT(addr(X32+1,$W$6)):$AG$14999,11,FALSE) -> 1239 | Y33: 1988-07-22 | Z33: 264.68 | AB33: =$A$6&AG33 -> A2744 | AC33: =$N$1&AG33 -> N2744 | AD33: A2600 | AE33: =$N$1&AH33 -> N2600 | AF33: =$P$1&AH33 -> P2600 | AG33: =IF(ISNUMBER(VLOOKUP("BUY",INDIRECT(addr(AG32+1,$AC$6)):$AG$14002,5,FALSE)),VLOOKUP("BUY",INDIRECT(addr(AG32+1,$AC$6)):$AG$14002,5,FALSE),AG32) -> 2744 | AH33: =IF(ISNUMBER(VLOOKUP("sell",INDIRECT(addr(AH32+1,$AD$6)):$AG$14002,4,FALSE)),VLOOKUP("sell",INDIRECT(addr(AH32+1,$AD$6)):$AG$14002,4,FALSE),$AH$3) -> 2600 | AI33: 24 | AJ33: 2017-05-25 | AK33: 2415.07 | AL33: 2014-08-22 | AM33: 1988.4 | AN33: -0.1766698274 | AO33: -143.8571429 | AR33: -2415.07 | AS33: 1988.4 | AT33: 2017-05-25 | AU33: 2014-08-22 | BL33: 1965-02-12 | BM33: 3.98 | BN33: 1965-06-11 | BO33: 4.04 | BP33: 1.000774281 | BU33: =IF(ISNUMBER(-AK33),-AK33,"-") -> -2415.07 | BV33: =AM33 -> 1988.4 | BX33: =IF(ISNUMBER(AJ33+3),AJ33+3,"-") -> 2017-05-28 | BY33: =AL33 -> 2014-08-22 | BZ33: =AK33 -> 2415.07 | CA33: 1988.4 | CC33: =IF(ISNUMBER(CD32/BZ33*CE33),CD32/BZ33*CE33,"-") -> 0 | CD33: =IF(ISNUMBER(CA33*CC33),CA33*CC33,"-") -> 0 | CE33: 0 | CG33: =AL32 -> 2017-04-20 | CH33: =AJ33 -> 2017-05-25 | CN33: 0 | CR33: 1965-06-11 | CS33: 85.12 | CU33: 1965-06-14 | CV33: 84.01
A34: 1965-06-18 | B34: 85.34 | C34: =AVERAGE(INDIRECT($B$6&ROW()-$C$11+1):B34) -> 85.34 | F34: 0 | G34: 0 | N34: 85.05 | X34: =VLOOKUP(1,INDIRECT(addr(X33+1,$W$6)):$AG$14999,11,FALSE) -> 1306 | Y34: 1989-11-03 | Z34: 332.61 | AB34: =$A$6&AG34 -> A2744 | AC34: =$N$1&AG34 -> N2744 | AD34: A2619 | AE34: =$N$1&AH34 -> N2619 | AF34: =$P$1&AH34 -> P2619 | AG34: =IF(ISNUMBER(VLOOKUP("BUY",INDIRECT(addr(AG33+1,$AC$6)):$AG$14002,5,FALSE)),VLOOKUP("BUY",INDIRECT(addr(AG33+1,$AC$6)):$AG$14002,5,FALSE),AG33) -> 2744 | AH34: =IF(ISNUMBER(VLOOKUP("sell",INDIRECT(addr(AH33+1,$AD$6)):$AG$14002,4,FALSE)),VLOOKUP("sell",INDIRECT(addr(AH33+1,$AD$6)):$AG$14002,4,FALSE),$AH$3) -> 2619 | AI34: 25 | AJ34: - | AK34: - | AL34: - | AM34: - | AN34: - | AO34: - | AP34: - | AS34: - | AT34: - | AU34: - | BL34: 1965-02-15 | BM34: 3.98 | BN34: 1965-06-18 | BO34: 4.04 | BP34: 1.000774281 | BU34: =IF(ISNUMBER(-AK34),-AK34,"-") -> - | BV34: =AM34 -> - | BX34: =IF(ISNUMBER(AJ34+3),AJ34+3,"-") -> - | BY34: =AL34 -> - | BZ34: =AK34 -> - | CA34: - | CC34: =IF(ISNUMBER(CD33/BZ34*CE34),CD33/BZ34*CE34,"-") -> - | CD34: =IF(ISNUMBER(CA34*CC34),CA34*CC34,"-") -> - | CE34: - | CG34: =AL33 -> 2014-08-22 | CH34: =AJ34 -> - | CN34: 0 | CR34: 1965-06-18 | CS34: 85.34 | CU34: 1965-06-21 | CV34: 85.05
A35: 1965-06-25 | B35: 83.06 | C35: =AVERAGE(INDIRECT($B$6&ROW()-$C$11+1):B35) -> 83.06 | F35: 0 | G35: 0 | N35: 81.6 | X35: =VLOOKUP(1,INDIRECT(addr(X34+1,$W$6)):$AG$14999,11,FALSE) -> 1374 | Y35: 1991-02-22 | Z35: 367.26 | BL35: 1965-02-16 | BM35: 3.98 | BN35: 1965-06-25 | BO35: 4.04 | BP35: 1.000774281 | CN35: 0 | CR35: 1965-06-25 | CS35: 83.06 | CU35: 1965-06-28 | CV35: 81.6
A36: 1965-07-02 | B36: 85.16 | C36: =AVERAGE(INDIRECT($B$6&ROW()-$C$11+1):B36) -> 85.16 | F36: 0 | G36: 0 | N36: 85.16 | X36: =VLOOKUP(1,INDIRECT(addr(X35+1,$W$6)):$AG$14999,11,FALSE) -> 1420 | Y36: 1992-01-10 | Z36: 414.34 | BL36: 1965-02-17 | BM36: 3.98 | BN36: 1965-07-02 | BO36: 4.09 | BP36: 1.000783863 | CN36: 0 | CR36: 1965-07-02 | CS36: 85.16 | CU36: 1965-07-05 | CV36: 85.16
A37: 1965-07-09 | B37: 85.71 | C37: =AVERAGE(INDIRECT($B$6&ROW()-$C$11+1):B37) -> 85.71 | F37: 0 | G37: 0 | N37: 85.69 | X37: =VLOOKUP(1,INDIRECT(addr(X36+1,$W$6)):$AG$14999,11,FALSE) -> 1427 | Y37: 1992-02-28 | Z37: 412.45 | BL37: 1965-02-18 | BM37: 3.98 | BN37: 1965-07-09 | BO37: 4.09 | BP37: 1.000783863 | CC37: =MAX(BY10:BY34) -> 2017-04-20 | CD37: =VLOOKUP(MAX(BX10:BX34),$BX$10:$CD$34,7)/VLOOKUP(MAX(BX10:BX34),$BX$10:$CD$34,4) -> 0 | CE37: =oz of gold | CF37: =CF9*VLOOKUP(MAX(BX10:BX34),$BX$10:$CD$34,4) -> 242754.2425 | CN37: 0 | CR37: 1965-07-09 | CS37: 85.71 | CU37: 1965-07-12 | CV37: 85.69
A38: 1965-07-16 | B38: 85.69 | C38: =AVERAGE(INDIRECT($B$6&ROW()-$C$11+1):B38) -> 85.69 | F38: 0 | G38: 0 | N38: 85.63 | X38: =VLOOKUP(1,INDIRECT(addr(X37+1,$W$6)):$AG$14999,11,FALSE) -> 1470 | Y38: 1992-12-25 | Z38: 439.15 | AI38: no interest when in cash | AJ38: =AT38 -> 1970-09-21 | AK38: =-AR38 -> 10000 | AL38: =AU38 -> 2017-04-20 | AM38: =AS38 ->  | AN38: =(AM38-AK38)/AK38/100 ->  | AO38: =(AL38-AJ38)/7 -> 2430.428571 | AP38: =XIRR(AR38:AS38,AT38:AU38) ->  | AR38: =R2 -> -10000 | AS38: =S2 ->  | AT38: =BX9 -> 1970-09-21 | AU38: =U2 -> 2017-04-20 | AV38: =V2 ->  | BL38: 1965-02-19 | BM38: 3.98 | BN38: 1965-07-16 | BO38: 4.09 | BP38: 1.000783863 | CB38: =-CD9 -> -10000 | CC38: =VLOOKUP(MAX(BX10:BX34),$BX$10:$CD$34,7) -> 0 | CD38: =BX9 -> 1970-09-21 | CE38: =CC37 -> 2017-04-20 | CF38: =XIRR(CB38:CC38,CD38:CE38) ->  | CN38: 0 | CR38: 1965-07-16 | CS38: 85.69 | CU38: 1965-07-19 | CV38: 85.63
A39: 1965-07-23 | B39: 84.07 | C39: =AVERAGE(INDIRECT($B$6&ROW()-$C$11+1):B39) -> 84.07 | F39: 0 | G39: 0 | N39: 84.05 | X39: =VLOOKUP(1,INDIRECT(addr(X38+1,$W$6)):$AG$14999,11,FALSE) -> 1580 | Y39: 1995-02-03 | Z39: 481.14 | AI39: S&P500 cont. | AJ39: =AT39 -> 1970-09-21 | AK39: =-AR39 -> 10000 | AL39: =AU39 -> 2017-04-20 | AM39: =AS39 -> 242754.2425 | AN39: =(AM39-AK39)/AK39/100 -> 0.2327542425 | AO39: =(AL39-AJ39)/7 -> 2430.428571 | AP39: =XIRR(AR39:AS39,AT39:AU39) -> 0.07082282603 | AR39: =R4 -> -10000 | AS39: =S4 -> 242754.2425 | AT39: =BX9 -> 1970-09-21 | AU39: =U4 -> 2017-04-20 | AV39: =V4 -> 0.07082282603 | BL39: 1965-02-23 | BM39: 3.98 | BN39: 1965-07-23 | BO39: 4.09 | BP39: 1.000783863 | CB39: =-BZ9 -> -81.91 | CC39: =VLOOKUP(MAX(BX10:BX34),$BX$10:$CD$34,4) -> 1988.4 | CD39: =BX9 -> 1970-09-21 | CE39: =CE38 -> 2017-04-20 | CF39: =XIRR(CB39:CC39,CD39:CE39) -> 0.07082282603 | CN39: 0 | CR39: 1965-07-23 | CS39: 84.07 | CU39: 1965-07-26 | CV39: 84.05
A40: 1965-07-30 | B40: 85.25 | C40: =AVERAGE(INDIRECT($B$6&ROW()-$C$11+1):B40) -> 85.25 | F40: 0 | G40: 0 | N40: 85.42 | X40: =VLOOKUP(1,INDIRECT(addr(X39+1,$W$6)):$AG$14999,11,FALSE) -> 1638 | Y40: 1996-03-15 | Z40: 652.65 | BL40: 1965-02-24 | BM40: 3.98 | BN40: 1965-07-30 | BO40: 4.09 | BP40: 1.000783863 | CN40: 0 | CR40: 1965-07-30 | CS40: 85.25 | CU40: 1965-08-02 | CV40: 85.42
A41: 1965-08-06 | B41: 86.07 | C41: =AVERAGE(INDIRECT($B$6&ROW()-$C$11+1):B41) -> 86.07 | F41: 0 | G41: 0 | N41: 85.86 | X41: =VLOOKUP(1,INDIRECT(addr(X40+1,$W$6)):$AG$14999,11,FALSE) -> 1692 | Y41: 1997-03-28 | Z41: 757.12 | BL41: 1965-02-25 | BM41: 3.98 | BN41: 1965-08-06 | BO41: 4.12 | BP41: 1.000789613 | CN41: 0 | CR41: 1965-08-06 | CS41: 86.07 | CU41: 1965-08-09 | CV41: 85.86
A42: 1965-08-13 | B42: 86.77 | C42: =AVERAGE(INDIRECT($B$6&ROW()-$C$11+1):B42) -> 86.77 | F42: 0 | G42: 0 | N42: 86.87 | X42: =VLOOKUP(1,INDIRECT(addr(X41+1,$W$6)):$AG$14999,11,FALSE) -> 1723 | Y42: 1997-10-31 | Z42: 938.99 | BL42: 1965-02-26 | BM42: 3.98 | BN42: 1965-08-13 | BO42: 4.12 | BP42: 1.000789613 | CN42: 0 | CR42: 1965-08-13 | CS42: 86.77 | CU42: 1965-08-16 | CV42: 86.87
A43: 1965-08-20 | B43: 86.69 | C43: =AVERAGE(INDIRECT($B$6&ROW()-$C$11+1):B43) -> 86.69 | F43: 0 | G43: 0 | N43: 86.56 | X43: =VLOOKUP(1,INDIRECT(addr(X42+1,$W$6)):$AG$14999,11,FALSE) -> 1750 | Y43: 1998-05-08 | Z43: 1106.64 | BL43: 1965-03-01 | BM43: 4.04 | BN43: 1965-08-20 | BO43: 4.12 | BP43: 1.000789613 | CN43: 0 | CR43: 1965-08-20 | CS43: 86.69 | CU43: 1965-08-23 | CV43: 86.56
A44: 1965-08-27 | B44: 87.2 | C44: =AVERAGE(INDIRECT($B$6&ROW()-$C$11+1):B44) -> 87.2 | F44: 0 | G44: 0 | N44: 87.21 | X44: =VLOOKUP(1,INDIRECT(addr(X43+1,$W$6)):$AG$14999,11,FALSE) -> 1788 | Y44: 1999-01-29 | Z44: 1273 | BL44: 1965-03-02 | BM44: 4.04 | BN44: 1965-08-27 | BO44: 4.12 | BP44: 1.000789613 | CN44: 0 | CR44: 1965-08-27 | CS44: 87.2 | CU44: 1965-08-30 | CV44: 87.21
A45: 1965-09-03 | B45: 88.06 | C45: =AVERAGE(INDIRECT($B$6&ROW()-$C$11+1):B45) -> 88.06 | F45: 1 | G45: 0.001893939394 | N45: 88.06 | X45: =VLOOKUP(1,INDIRECT(addr(X44+1,$W$6)):$AG$14999,11,FALSE) -> 1938 | Y45: 2001-12-14 | Z45: 1134.36 | BL45: 1965-03-03 | BM45: 4.04 | BN45: 1965-09-03 | BO45: 4.01 | BP45: 1.000768531 | CN45: 0 | CR45: 1965-09-03 | CS45: 88.06 | CU45: 1965-09-06 | CV45: 88.06
A46: 1965-09-10 | B46: 89.12 | C46: =AVERAGE(INDIRECT($B$6&ROW()-$C$11+1):B46) -> 89.12 | F46: 2 | G46: 0.003787878788 | N46: 89.38 | X46: =VLOOKUP(1,INDIRECT(addr(X45+1,$W$6)):$AG$14999,11,FALSE) -> 2005 | Y46: 2003-03-28 | Z46: 848.18 | BL46: 1965-03-04 | BM46: 4.04 | BN46: 1965-09-10 | BO46: 4.01 | BP46: 1.000768531 | CN46: 0 | CR46: 1965-09-10 | CS46: 89.12 | CU46: 1965-09-13 | CV46: 89.38
A47: 1965-09-17 | B47: 90.05 | C47: =AVERAGE(INDIRECT($B$6&ROW()-$C$11+1):B47) -> 90.05 | F47: 3 | G47: 0.005681818182 | N47: 90.08 | X47: =VLOOKUP(1,INDIRECT(addr(X46+1,$W$6)):$AG$14999,11,FALSE) -> 2063 | Y47: 2004-05-07 | Z47: 1087.12 | BL47: 1965-03-05 | BM47: 4.04 | BN47: 1965-09-17 | BO47: 4.01 | BP47: 1.000768531 | CN47: 0 | CR47: 1965-09-17 | CS47: 90.05 | CU47: 1965-09-20 | CV47: 90.08
A48: 1965-09-24 | B48: 90.02 | C48: =AVERAGE(INDIRECT($B$6&ROW()-$C$11+1):B48) -> 90.02 | F48: 4 | G48: 0.007575757576 | N48: 90.65 | X48: =VLOOKUP(1,INDIRECT(addr(X47+1,$W$6)):$AG$14999,11,FALSE) -> 2126 | Y48: 2005-07-22 | Z48: 1229.03 | BL48: 1965-03-08 | BM48: 4.04 | BN48: 1965-09-24 | BO48: 4.01 | BP48: 1.000768531 | CN48: 0 | CR48: 1965-09-24 | CS48: 90.02 | CU48: 1965-09-27 | CV48: 90.65
A49: 1965-10-01 | B49: 89.9 | C49: =AVERAGE(INDIRECT($B$6&ROW()-$C$11+1):B49) -> 89.9 | F49: 5 | G49: 0.00946969697 | N49: 90.08 | X49: =VLOOKUP(1,INDIRECT(addr(X48+1,$W$6)):$AG$14999,11,FALSE) -> 2136 | Y49: 2005-09-30 | Z49: 1226.7 | BL49: 1965-03-09 | BM49: 4.04 | BN49: 1965-10-01 | BO49: 4.08 | BP49: 1.000781947 | CN49: 0 | CR49: 1965-10-01 | CS49: 89.9 | CU49: 1965-10-04 | CV49: 90.08
A50: 1965-10-08 | B50: 90.85 | C50: =AVERAGE(INDIRECT($B$6&ROW()-$C$11+1):B50) -> 90.85 | F50: 6 | G50: 0.01136363636 | N50: 91.37 | X50: =VLOOKUP(1,INDIRECT(addr(X49+1,$W$6)):$AG$14999,11,FALSE) -> 2192 | Y50: 2006-10-27 | Z50: 1377.93 | BL50: 1965-03-10 | BM50: 4.04 | BN50: 1965-10-08 | BO50: 4.08 | BP50: 1.000781947 | CN50: 0 | CR50: 1965-10-08 | CS50: 90.85 | CU50: 1965-10-11 | CV50: 91.37
A51: 1965-10-15 | B51: 91.38 | C51: =AVERAGE(INDIRECT($B$6&ROW()-$C$11+1):B51) -> 91.38 | F51: 7 | G51: 0.01325757576 | N51: 91.68 | X51: =VLOOKUP(1,INDIRECT(addr(X50+1,$W$6)):$AG$14999,11,FALSE) -> 2326 | Y51: 2009-05-22 | Z51: 887 | BL51: 1965-03-11 | BM51: 4.04 | BN51: 1965-10-15 | BO51: 4.08 | BP51: 1.000781947 | CN51: 0 | CR51: 1965-10-15 | CS51: 91.38 | CU51: 1965-10-18 | CV51: 91.68
A52: 1965-10-22 | B52: 91.98 | C52: =AVERAGE(INDIRECT($B$6&ROW()-$C$11+1):B52) -> 91.98 | F52: 8 | G52: 0.01515151515 | N52: 91.67 | X52: =VLOOKUP(1,INDIRECT(addr(X51+1,$W$6)):$AG$14999,11,FALSE) -> 2377 | Y52: 2010-05-14 | Z52: 1136.94 | BL52: 1965-03-12 | BM52: 4.04 | BN52: 1965-10-22 | BO52: 4.08 | BP52: 1.000781947 | CN52: 0 | CR52: 1965-10-22 | CS52: 91.98 | CU52: 1965-10-25 | CV52: 91.67
A53: 1965-10-29 | B53: 92.42 | C53: =AVERAGE(INDIRECT($B$6&ROW()-$C$11+1):B53) -> 92.42 | F53: 9 | G53: 0.01704545455 | N53: 92.23 | X53: =VLOOKUP(1,INDIRECT(addr(X52+1,$W$6)):$AG$14999,11,FALSE) -> 2415 | Y53: 2011-02-04 | Z53: 1319.05 | BL53: 1965-03-15 | BM53: 4.04 | BN53: 1965-10-29 | BO53: 4.08 | BP53: 1.000781947 | CN53: 0 | CR53: 1965-10-29 | CS53: 92.42 | CU53: 1965-11-01 | CV53: 92.23
A54: 1965-11-05 | B54: 92.37 | C54: =AVERAGE(INDIRECT($B$6&ROW()-$C$11+1):B54) -> 92.37 | F54: 10 | G54: 0.01893939394 | N54: 92.23 | X54: =VLOOKUP(1,INDIRECT(addr(X53+1,$W$6)):$AG$14999,11,FALSE) -> 2432 | Y54: 2011-06-03 | Z54: 1286.17 | BL54: 1965-03-16 | BM54: 4.04 | BN54: 1965-11-05 | BO54: 4.1 | BP54: 1.00078578 | CN54: 0 | CR54: 1965-11-05 | CS54: 92.37 | CU54: 1965-11-08 | CV54: 92.23
A55: 1965-11-12 | B55: 92.55 | C55: =AVERAGE(INDIRECT($B$6&ROW()-$C$11+1):B55) -> 92.55 | F55: 11 | G55: 0.02083333333 | N55: 92.63 | X55: =VLOOKUP(1,INDIRECT(addr(X54+1,$W$6)):$AG$14999,11,FALSE) -> 2438 | Y55: 2011-07-15 | Z55: 1305.44 | BL55: 1965-03-17 | BM55: 4.04 | BN55: 1965-11-12 | BO55: 4.1 | BP55: 1.00078578 | CN55: 0 | CR55: 1965-11-12 | CS55: 92.55 | CU55: 1965-11-15 | CV55: 92.63
A56: 1965-11-19 | B56: 92.24 | C56: =AVERAGE(INDIRECT($B$6&ROW()-$C$11+1):B56) -> 92.24 | F56: 12 | G56: 0.02272727273 | N56: 91.64 | X56: =VLOOKUP(1,INDIRECT(addr(X55+1,$W$6)):$AG$14999,11,FALSE) -> 2473 | Y56: 2012-03-16 | Z56: 1409.75 | BL56: 1965-03-18 | BM56: 4.04 | BN56: 1965-11-19 | BO56: 4.1 | BP56: 1.00078578 | CN56: 0 | CR56: 1965-11-19 | CS56: 92.24 | CU56: 1965-11-22 | CV56: 91.64
A57: 1965-11-26 | B57: 92.03 | C57: =AVERAGE(INDIRECT($B$6&ROW()-$C$11+1):B57) -> 92.03 | F57: 13 | G57: 0.02462121212 | N57: 91.8 | X57: =VLOOKUP(1,INDIRECT(addr(X56+1,$W$6)):$AG$14999,11,FALSE) -> 2485 | Y57: 2012-06-08 | Z57: 1308.93 | BL57: 1965-03-19 | BM57: 4.04 | BN57: 1965-11-26 | BO57: 4.1 | BP57: 1.00078578 | CN57: 0 | CR57: 1965-11-26 | CS57: 92.03 | CU57: 1965-11-29 | CV57: 91.8
A58: 1965-12-03 | B58: 91.27 | C58: =AVERAGE(INDIRECT($B$6&ROW()-$C$11+1):B58) -> 91.27 | F58: 14 | G58: 0.02651515152 | N58: 90.59 | X58: =VLOOKUP(1,INDIRECT(addr(X57+1,$W$6)):$AG$14999,11,FALSE) -> 2509 | Y58: 2012-11-23 | Z58: 1406.29 | BL58: 1965-03-22 | BM58: 4.04 | BN58: 1965-12-03 | BO58: 4.32 | BP58: 1.000827944 | CN58: 0 | CR58: 1965-12-03 | CS58: 91.27 | CU58: 1965-12-06 | CV58: 90.59
A59: 1965-12-10 | B59: 91.8 | C59: =AVERAGE(INDIRECT($B$6&ROW()-$C$11+1):B59) -> 91.8 | F59: 15 | G59: 0.02840909091 | N59: 91.83 | X59: =VLOOKUP(1,INDIRECT(addr(X58+1,$W$6)):$AG$14999,11,FALSE) -> 2519 | Y59: 2013-02-01 | Z59: 1495.71 | BL59: 1965-03-23 | BM59: 4.04 | BN59: 1965-12-10 | BO59: 4.32 | BP59: 1.000827944 | CN59: 0 | CR59: 1965-12-10 | CS59: 91.8 | CU59: 1965-12-13 | CV59: 91.83
A60: 1965-12-17 | B60: 92.08 | C60: =AVERAGE(INDIRECT($B$6&ROW()-$C$11+1):B60) -> 92.08 | F60: 16 | G60: 0.0303030303 | N60: 91.65 | BL60: 1965-03-24 | BM60: 4.04 | BN60: 1965-12-17 | BO60: 4.32 | BP60: 1.000827944 | CN60: 0 | CR60: 1965-12-17 | CS60: 92.08 | CU60: 1965-12-20 | CV60: 91.65
A61: 1965-12-24 | B61: 92.19 | C61: =AVERAGE(INDIRECT($B$6&ROW()-$C$11+1):B61) -> 92.19 | F61: 17 | G61: 0.0321969697 | N61: 91.52 | BL61: 1965-03-25 | BM61: 4.04 | BN61: 1965-12-24 | BO61: 4.32 | BP61: 1.000827944 | CN61: 0 | CR61: 1965-12-24 | CS61: 92.19 | CU61: 1965-12-27 | CV61: 91.52
A62: 1965-12-31 | B62: 92.43 | C62: =AVERAGE(INDIRECT($B$6&ROW()-$C$11+1):B62) -> 92.43 | F62: 18 | G62: 0.03409090909 | N62: 92.18 | BL62: 1965-03-26 | BM62: 4.04 | BN62: 1965-12-31 | BO62: 4.32 | BP62: 1.000827944 | CN62: 0 | CR62: 1965-12-31 | CS62: 92.43 | CU62: 1966-01-03 | CV62: 92.18
A63: 1966-01-07 | B63: 93.14 | C63: =AVERAGE(INDIRECT($B$6&ROW()-$C$11+1):B63) -> 93.14 | F63: 19 | G63: 0.03598484848 | N63: 93.33 | BL63: 1965-03-29 | BM63: 4.04 | BN63: 1966-01-07 | BO63: 4.42 | BP63: 1.000847109 | CJ63: =($B63/OFFSET($B63,CJ$11*-1,0)-1)*100 -> 9.101557924 | CN63: 0 | CR63: 1966-01-07 | CS63: 93.14 | CU63: 1966-01-10 | CV63: 93.33
A64: 1966-01-14 | B64: 93.5 | C64: =AVERAGE(INDIRECT($B$6&ROW()-$C$11+1):B64) -> 93.5 | F64: 20 | G64: 0.03787878788 | N64: 93.77 | BL64: 1965-03-30 | BM64: 4.04 | BN64: 1966-01-14 | BO64: 4.42 | BP64: 1.000847109 | CJ64: =($B64/OFFSET($B64,CJ$11*-1,0)-1)*100 -> 8.456095581 | CN64: 0 | CR64: 1966-01-14 | CS64: 93.5 | CU64: 1966-01-17 | CV64: 93.77
A65: 1966-01-21 | B65: 93.47 | C65: =AVERAGE(INDIRECT($B$6&ROW()-$C$11+1):B65) -> 93.47 | F65: 21 | G65: 0.03977272727 | N65: 93.71 | BL65: 1965-03-31 | BM65: 4.04 | BN65: 1966-01-21 | BO65: 4.42 | BP65: 1.000847109 | CJ65: =($B65/OFFSET($B65,CJ$11*-1,0)-1)*100 -> 7.75881946 | CN65: 0 | CR65: 1966-01-21 | CS65: 93.47 | CU65: 1966-01-24 | CV65: 93.71
A66: 1966-01-28 | B66: 93.31 | C66: =AVERAGE(INDIRECT($B$6&ROW()-$C$11+1):B66) -> 93.31 | F66: 22 | G66: 0.04166666667 | N66: 92.88 | BL66: 1965-04-01 | BM66: 4.09 | BN66: 1966-01-28 | BO66: 4.42 | BP66: 1.000847109 | CJ66: =($B66/OFFSET($B66,CJ$11*-1,0)-1)*100 -> 6.566925537 | CN66: 0 | CR66: 1966-01-28 | CS66: 93.31 | CU66: 1966-01-31 | CV66: 92.88
A67: 1966-02-04 | B67: 93.26 | C67: =AVERAGE(INDIRECT($B$6&ROW()-$C$11+1):B67) -> 93.26 | F67: 23 | G67: 0.04356060606 | N67: 93.59 | BL67: 1965-04-02 | BM67: 4.09 | BN67: 1966-02-04 | BO67: 4.6 | BP67: 1.000881607 | CJ67: =($B67/OFFSET($B67,CJ$11*-1,0)-1)*100 -> 6.839271394 | CN67: 0 | CR67: 1966-02-04 | CS67: 93.26 | CU67: 1966-02-07 | CV67: 93.59
A68: 1966-02-11 | B68: 93.81 | C68: =AVERAGE(INDIRECT($B$6&ROW()-$C$11+1):B68) -> 93.81 | F68: 24 | G68: 0.04545454545 | N68: 93.65 | BL68: 1965-04-05 | BM68: 4.09 | BN68: 1966-02-11 | BO68: 4.6 | BP68: 1.000881607 | CJ68: 8.866194731 | CN68: 0 | CR68: 1966-02-11 | CS68: 93.81 | CU68: 1966-02-14 | CV68: 93.65
A69: 1966-02-18 | B69: 92.41 | C69: =AVERAGE(INDIRECT($B$6&ROW()-$C$11+1):B69) -> 92.41 | F69: 25 | G69: 0.04734848485 | N69: 91.87 | BL69: 1965-04-06 | BM69: 4.09 | BN69: 1966-02-18 | BO69: 4.6 | BP69: 1.000881607 | CJ69: 7.191741097 | CN69: 0 | CR69: 1966-02-18 | CS69: 92.41 | CU69: 1966-02-21 | CV69: 91.87
A70: 1966-02-25 | B70: 91.14 | C70: =AVERAGE(INDIRECT($B$6&ROW()-$C$11+1):B70) -> 91.14 | F70: 26 | G70: 0.04924242424 | N70: 91.22 | BL70: 1965-04-07 | BM70: 4.09 | BN70: 1966-02-25 | BO70: 4.6 | BP70: 1.000881607 | CJ70: 4.243394716 | CN70: 0 | CR70: 1966-02-25 | CS70: 91.14 | CU70: 1966-02-28 | CV70: 91.22
A71: 1966-03-04 | B71: 89.24 | C71: =AVERAGE(INDIRECT($B$6&ROW()-$C$11+1):B71) -> 89.24 | F71: 27 | G71: 0.05113636364 | N71: 88.04 | BL71: 1965-04-08 | BM71: 4.09 | BN71: 1966-03-04 | BO71: 4.65 | BP71: 1.000891189 | CJ71: 2.811059908 | CN71: 0 | CR71: 1966-03-04 | CS71: 89.24 | CU71: 1966-03-07 | CV71: 88.04
A72: 1966-03-11 | B72: 88.85 | C72: =AVERAGE(INDIRECT($B$6&ROW()-$C$11+1):B72) -> 88.85 | F72: 28 | G72: 0.05303030303 | N72: 87.85 | BL72: 1965-04-09 | BM72: 4.09 | BN72: 1966-03-11 | BO72: 4.65 | BP72: 1.000891189 | CJ72: 1.880518289 | CN72: 0 | CR72: 1966-03-11 | CS72: 88.85 | CU72: 1966-03-14 | CV72: 87.85
A73: 1966-03-18 | B73: 88.53 | C73: =AVERAGE(INDIRECT($B$6&ROW()-$C$11+1):B73) -> 88.53 | F73: 29 | G73: 0.05492424242 | N73: 89.2 | BL73: 1965-04-12 | BM73: 4.09 | BN73: 1966-03-18 | BO73: 4.65 | BP73: 1.000891189 | CJ73: 1.946107784 | CN73: 0 | CR73: 1966-03-18 | CS73: 88.53 | CU73: 1966-03-21 | CV73: 89.2
A74: 1966-03-25 | B74: 89.54 | C74: =AVERAGE(INDIRECT($B$6&ROW()-$C$11+1):B74) -> 89.54 | F74: 30 | G74: 0.05681818182 | N74: 89.62 | BL74: 1965-04-13 | BM74: 4.09 | BN74: 1966-03-25 | BO74: 4.65 | BP74: 1.000891189 | CJ74: 3.874709977 | CN74: 0 | CR74: 1966-03-25 | CS74: 89.54 | CU74: 1966-03-28 | CV74: 89.62
A75: 1966-04-01 | B75: 89.94 | C75: =AVERAGE(INDIRECT($B$6&ROW()-$C$11+1):B75) -> 89.94 | F75: =IF(F76>1,F76-1,0) -> 31 | G75: 0.05871212121 | N75: 90.76 | BL75: 1965-04-14 | BM75: 4.09 | BN75: 1966-04-01 | BO75: =VLOOKUP(BN75,$BL$4:$BM$12999,2) -> 4.67 | BP75: 1.000895022 | CJ75: 3.94082977 | CN75: 0 | CR75: 1966-04-01 | CS75: 89.94 | CU75: 1966-04-04 | CV75: 90.76
A76: 1966-04-08 | B76: 91.76 | C76: =AVERAGE(INDIRECT($B$6&ROW()-$C$11+1):B76) -> 91.76 | E76: weights= | F76: =G11 -> 32 | G76: =F76/$F$77 -> 0.06060606061 | N76: 91.79 | BL76: 1965-04-15 | BM76: 4.09 | BN76: =A76 -> 1966-04-08 | BO76: 4.67 | BP76: =1+BO76/$BP$3/100 -> 1.000895022 | CJ76: 4.796710827 | CN76: =$CN$11 -> 0 | CR76: 1966-04-08 | CS76: 91.76 | CU76: 1966-04-11 | CV76: 91.79
A77: 1966-04-15 | B77: 91.99 | C77: =AVERAGE(INDIRECT($B$6&ROW()-$C$11+1):B77) -> 91.99 | E77: sum of weights= | F77: =SUM(F29:F76) -> 528 | N77: 91.58 | BL77: 1965-04-19 | BM77: 4.09 | BN77: 1966-04-15 | BO77: 4.67 | BP77: 1.000895022 | CJ77: 4.356211004 | CN77: 0 | CR77: 1966-04-15 | CS77: 91.99 | CU77: 1966-04-18 | CV77: 91.58
A78: 1966-04-22 | B78: 92.27 | C78: =AVERAGE(INDIRECT($B$6&ROW()-$C$11+1):B78) -> 92.27 | N78: 92.08 | BL78: 1965-04-20 | BM78: 4.09 | BN78: 1966-04-22 | BO78: 4.67 | BP78: 1.000895022 | CJ78: 3.814131413 | CN78: 0 | CR78: 1966-04-22 | CS78: 92.27 | CU78: 1966-04-25 | CV78: 92.08
A79: 1966-04-29 | B79: 91.06 | C79: =AVERAGE(INDIRECT($B$6&ROW()-$C$11+1):B79) -> 91.06 | D79: =$C79/OFFSET($C79,D$11*-1,0)-1 -> 0.05638051044 | E79: =$C79/OFFSET($C79,E$11*-1,0)-1 -> 0.05797606599 | F79: =D79+E79 -> 0.1143565764 | N79: 90.9 | BL79: 1965-04-21 | BM79: 4.09 | BN79: 1966-04-29 | BO79: 4.67 | BP79: 1.000895022 | CJ79: =($B79/OFFSET($B79,CJ$11*-1,0)-1)*100 -> 2.188306587 | CN79: 0 | CR79: 1966-04-29 | CS79: 91.06 | CU79: 1966-05-02 | CV79: 90.9
A80: 1966-05-06 | B80: 87.84 | C80: =AVERAGE(INDIRECT($B$6&ROW()-$C$11+1):B80) -> 87.84 | D80: =$C80/OFFSET($C80,D$11*-1,0)-1 -> 0.01513925806 | E80: 0.01233145096 | F80: =D80+E80 -> 0.02747070902 | N80: 86.32 | BL80: 1965-04-22 | BM80: 4.09 | BN80: 1966-05-06 | BO80: 4.9 | BP80: 1.000939103 | CJ80: =($B80/OFFSET($B80,CJ$11*-1,0)-1)*100 -> -2.23706177 | CN80: 0 | CR80: 1966-05-06 | CS80: 87.84 | CU80: 1966-05-09 | CV80: 86.32
A81: 1966-05-13 | B81: 85.47 | C81: =AVERAGE(INDIRECT($B$6&ROW()-$C$11+1):B81) -> 85.47 | D81: -0.02386934673 | E81: -0.01407313416 | F81: -0.03794248089 | N81: 84.41 | BL81: 1965-04-23 | BM81: 4.09 | BN81: 1966-05-13 | BO81: 4.9 | BP81: 1.000939103 | CJ81: -5.138734739 | CN81: 0 | CR81: 1966-05-13 | CS81: 85.47 | CU81: 1966-05-16 | CV81: 84.41
A82: 1966-05-20 | B82: 85.43 | C82: =AVERAGE(INDIRECT($B$6&ROW()-$C$11+1):B82) -> 85.43 | D82: -0.03085649461 | E82: -0.02029816514 | F82: -0.05115465975 | N82: 86.2 | BL82: 1965-04-26 | BM82: 4.09 | BN82: 1966-05-20 | BO82: 4.9 | BP82: 1.000939103 | CJ82: -3.74084507 | CN82: 0 | CR82: 1966-05-20 | CS82: 85.43 | CU82: 1966-05-23 | CV82: 86.2
A83: 1966-05-27 | B83: 87.33 | C83: =AVERAGE(INDIRECT($B$6&ROW()-$C$11+1):B83) -> 87.33 | D83: -0.01743924392 | E83: -0.008289802407 | F83: -0.02572904633 | N83: 87.33 | BL83: 1965-04-27 | BM83: 4.09 | BN83: 1966-05-27 | BO83: 4.9 | BP83: 1.000939103 | CJ83: -1.232752771 | CN83: 0 | CR83: 1966-05-27 | CS83: 87.33 | CU83: 1966-05-30 | CV83: 87.33
A84: 1966-06-03 | B84: 86.06 | C84: =AVERAGE(INDIRECT($B$6&ROW()-$C$11+1):B84) -> 86.06 | D84: -0.03422735944 | E84: -0.03433572711 | F84: -0.06856308655 | N84: 85.42 | BL84: 1965-04-28 | BM84: 4.09 | BN84: 1966-06-03 | BO84: 5.17 | BP84: 1.000990849 | CJ84: -1.205372518 | CN84: 0 | CR84: 1966-06-03 | CS84: 86.06 | CU84: 1966-06-06 | CV84: 85.42
A85: 1966-06-10 | B85: 86.44 | C85: =AVERAGE(INDIRECT($B$6&ROW()-$C$11+1):B85) -> 86.44 | D85: -0.03795214246 | E85: -0.04008883953 | F85: -0.07804098199 | N85: 86.83 | BL85: 1965-04-29 | BM85: 4.09 | BN85: 1966-06-10 | BO85: 5.17 | BP85: 1.000990849 | CJ85: 1.55075188 | CN85: 0 | CR85: 1966-06-10 | CS85: 86.44 | CU85: 1966-06-13 | CV85: 86.83
A86: 1966-06-17 | B86: 86.51 | C86: =AVERAGE(INDIRECT($B$6&ROW()-$C$11+1):B86) -> 86.51 | D86: -0.03984461709 | E86: -0.03899133526 | F86: -0.07883595235 | N86: 86.48 | BL86: 1965-04-30 | BM86: 4.09 | BN86: 1966-06-17 | BO86: 5.17 | BP86: 1.000990849 | CJ86: 1.370986642 | CN86: 0 | CR86: 1966-06-17 | CS86: 86.51 | CU86: 1966-06-20 | CV86: 86.48
A87: 1966-06-24 | B87: 86.58 | C87: =AVERAGE(INDIRECT($B$6&ROW()-$C$11+1):B87) -> 86.58 | D87: -0.02445070423 | E87: -0.03692992214 | F87: -0.06138062636 | N87: 86.08 | BL87: 1965-05-03 | BM87: 4.1 | BN87: 1966-06-24 | BO87: 5.17 | BP87: 1.000990849 | CJ87: 4.237900313 | CN87: 0 | CR87: 1966-06-24 | CS87: 86.58 | CU87: 1966-06-27 | CV87: 86.08
A88: 1966-07-01 | B88: 85.61 | C88: =AVERAGE(INDIRECT($B$6&ROW()-$C$11+1):B88) -> 85.61 | D88: -0.03178014024 | E88: -0.05767749037 | F88: -0.08945763061 | N88: 85.61 | BL88: 1965-05-04 | BM88: 4.1 | BN88: 1966-07-01 | BO88: 5.3 | BP88: 1.001015764 | CJ88: 0.5284170972 | CN88: 0 | CR88: 1966-07-01 | CS88: 85.61 | CU88: 1966-07-04 | CV88: 85.61
A89: 1966-07-08 | B89: 87.61 | C89: =AVERAGE(INDIRECT($B$6&ROW()-$C$11+1):B89) -> 87.61 | D89: 0.005739869131 | E89: -0.04125629241 | F89: -0.03551642327 | N89: 87.45 | BL89: 1965-05-05 | BM89: 4.1 | BN89: 1966-07-08 | BO89: 5.3 | BP89: 1.001015764 | CJ89: 2.216777506 | CN89: 0 | CR89: 1966-07-08 | CS89: 87.61 | CU89: 1966-07-11 | CV89: 87.45
A90: 1966-07-15 | B90: 87.08 | C90: =AVERAGE(INDIRECT($B$6&ROW()-$C$11+1):B90) -> 87.08 | D90: 0.02302631579 | E90: -0.05327245053 | F90: -0.03024613474 | N90: 86.99 | BL90: 1965-05-06 | BM90: 4.1 | BN90: 1966-07-15 | BO90: 5.3 | BP90: 1.001015764 | CJ90: 1.622126269 | CN90: 0 | CR90: 1966-07-15 | CS90: 87.08 | CU90: 1966-07-18 | CV90: 86.99
A91: 1966-07-22 | B91: 85.41 | C91: =AVERAGE(INDIRECT($B$6&ROW()-$C$11+1):B91) -> 85.41 | D91: 0.0008202484181 | E91: -0.07584938325 | F91: -0.07502913483 | N91: 83.83 | BL91: 1965-05-07 | BM91: 4.1 | BN91: 1966-07-22 | BO91: 5.3 | BP91: 1.001015764 | CJ91: 1.593909837 | CN91: 0 | CR91: 1966-07-22 | CS91: 85.41 | CU91: 1966-07-25 | CV91: 83.83
A92: 1966-07-29 | B92: 83.6 | C92: =AVERAGE(INDIRECT($B$6&ROW()-$C$11+1):B92) -> 83.6 | D92: 0.006501324344 | E92: -0.09494424597 | F92: -0.08844292162 | N92: 82.31 | BL92: 1965-05-10 | BM92: 4.1 | BN92: 1966-07-29 | BO92: 5.3 | BP92: 1.001015764 | CJ92: -1.935483871 | CN92: 0 | CR92: 1966-07-29 | CS92: 83.6 | CU92: 1966-08-01 | CV92: 82.31
A93: 1966-08-05 | B93: 84 | C93: =AVERAGE(INDIRECT($B$6&ROW()-$C$11+1):B93) -> 84 | D93: -0.01362141851 | E93: -0.09238249595 | F93: -0.1060039145 | N93: 83.75 | BL93: 1965-05-11 | BM93: 4.1 | BN93: 1966-08-05 | BO93: 5.53 | BP93: 1.001059845 | CJ93: -2.40501917 | CN93: 0 | CR93: 1966-08-05 | CS93: 84 | CU93: 1966-08-08 | CV93: 83.75
A94: 1966-08-12 | B94: 83.17 | C94: =AVERAGE(INDIRECT($B$6&ROW()-$C$11+1):B94) -> 83.17 | D94: -0.02963481507 | E94: -0.09833044232 | F94: -0.1279652574 | N94: 82.74 | BL94: 1965-05-12 | BM94: 4.1 | BN94: 1966-08-12 | BO94: 5.53 | BP94: 1.001059845 | CJ94: -4.148899389 | CN94: 0 | CR94: 1966-08-12 | CS94: 83.17 | CU94: 1966-08-15 | CV94: 82.74
A95: 1966-08-19 | B95: 79.62 | C95: =AVERAGE(INDIRECT($B$6&ROW()-$C$11+1):B95) -> 79.62 | D95: -0.07083673708 | E95: -0.1348473324 | F95: -0.2056840695 | N95: 78.24 | BL95: 1965-05-13 | BM95: 4.1 | BN95: 1966-08-19 | BO95: 5.53 | BP95: 1.001059845 | CJ95: -8.155496597 | CN95: 0 | CR95: 1966-08-19 | CS95: 79.62 | CU95: 1966-08-22 | CV95: 78.24
A96: 1966-08-26 | B96: 76.41 | C96: =AVERAGE(INDIRECT($B$6&ROW()-$C$11+1):B96) -> 76.41 | D96: -0.0911145474 | E96: -0.1628136299 | F96: -0.2539281773 | N96: 74.53 | BL96: 1965-05-14 | BM96: 4.1 | BN96: 1966-08-26 | BO96: 5.53 | BP96: 1.001059845 | CJ96: -12.37385321 | CN96: 0 | CR96: 1966-08-26 | CS96: 76.41 | CU96: 1966-08-29 | CV96: 74.53
A97: 1966-09-02 | B97: 77.42 | C97: =AVERAGE(INDIRECT($B$6&ROW()-$C$11+1):B97) -> 77.42 | D97: -0.09184750733 | E97: -0.1566448802 | F97: -0.2484923875 | N97: 77.42 | BL97: 1965-05-17 | BM97: 4.1 | BN97: 1966-09-02 | BO97: 5.4 | BP97: 1.00103493 | CJ97: -12.08267091 | CN97: 0 | CR97: 1966-09-02 | CS97: 77.42 | CU97: 1966-09-05 | CV97: 77.42
A98: 1966-09-09 | B98: 76.29 | C98: =AVERAGE(INDIRECT($B$6&ROW()-$C$11+1):B98) -> 76.29 | D98: -0.113628442 | E98: -0.1714813206 | F98: -0.2851097626 | N98: 77.91 | BL98: 1965-05-18 | BM98: 4.1 | BN98: 1966-09-09 | BO98: 5.4 | BP98: 1.00103493 | CJ98: -14.39631957 | CN98: 0 | CR98: 1966-09-09 | CS98: 76.29 | CU98: 1966-09-12 | CV98: 77.91
A99: 1966-09-16 | B99: 79.99 | C99: =AVERAGE(INDIRECT($B$6&ROW()-$C$11+1):B99) -> 79.99 | D99: -0.07813760516 | E99: -0.1323353943 | F99: -0.2104729995 | N99: 79.59 | BL99: 1965-05-19 | BM99: 4.1 | BN99: 1966-09-16 | BO99: 5.4 | BP99: 1.00103493 | CJ99: -11.17157135 | CN99: 0 | CR99: 1966-09-16 | CS99: 79.99 | CU99: 1966-09-19 | CV99: 79.59
A100: 1966-09-23 | B100: 77.67 | C100: =AVERAGE(INDIRECT($B$6&ROW()-$C$11+1):B100) -> 77.67 | D100: -0.1040489099 | E100: -0.1596884129 | F100: -0.2637373228 | N100: 77.86 | BL100: 1965-05-20 | BM100: 4.1 | BN100: 1966-09-23 | BO100: 5.4 | BP100: 1.00103493 | CJ100: -13.71917352 | CN100: 0 | CR100: 1966-09-23 | CS100: 77.67 | CU100: 1966-09-26 | CV100: 77.86
A101: 1966-09-30 | B101: 76.56 | C101: =AVERAGE(INDIRECT($B$6&ROW()-$C$11+1):B101) -> 76.56 | D101: -0.1220183486 | E101: -0.1780115954 | F101: -0.3000299441 | N101: 74.9 | BL101: 1965-05-21 | BM101: 4.1 | BN101: 1966-09-30 | BO101: 5.4 | BP101: 1.00103493 | CJ101: -14.83870968 | CN101: 0 | CR101: 1966-09-30 | CS101: 76.56 | CU101: 1966-10-03 | CV101: 74.9
A102: 1966-10-07 | B102: 73.2 | C102: =AVERAGE(INDIRECT($B$6&ROW()-$C$11+1):B102) -> 73.2 | D102: -0.1687485805 | E102: -0.2171122995 | F102: -0.38586088 | N102: 74.53 | BL102: 1965-05-24 | BM102: 4.1 | BN102: 1966-10-07 | BO102: 5.53 | BP102: 1.001059845 | CJ102: -19.42762796 | CN102: 0 | CR102: 1966-10-07 | CS102: 73.2 | CU102: 1966-10-10 | CV102: 74.53
A103: 1966-10-14 | B103: 76.6 | C103: =AVERAGE(INDIRECT($B$6&ROW()-$C$11+1):B103) -> 76.6 | D103: -0.1404847397 | E103: -0.1804857173 | F103: -0.320970457 | N103: 77.47 | BL103: 1965-05-25 | BM103: 4.1 | BN103: 1966-10-14 | BO103: 5.53 | BP103: 1.001059845 | CJ103: -16.17421755 | CN103: 0 | CR103: 1966-10-14 | CS103: 76.6 | CU103: 1966-10-17 | CV103: 77.47
A104: 1966-10-21 | B104: 78.19 | C104: =AVERAGE(INDIRECT($B$6&ROW()-$C$11+1):B104) -> 78.19 | D104: -0.1317046086 | E104: -0.1620405101 | F104: -0.2937451187 | N104: 78.42 | BL104: 1965-05-26 | BM104: 4.1 | BN104: 1966-10-21 | BO104: 5.53 | BP104: 1.001059845 | CJ104: -14.99238965 | CN104: 0 | CR104: 1966-10-21 | CS104: 78.19 | CU104: 1966-10-24 | CV104: 78.42
A105: 1966-10-28 | B105: 80.24 | C105: =AVERAGE(INDIRECT($B$6&ROW()-$C$11+1):B105) -> 80.24 | D105: -0.1086425239 | E105: -0.1396096933 | F105: -0.2482522172 | N105: 80.2 | BL105: 1965-05-27 | BM105: 4.1 | BN105: 1966-10-28 | BO105: 5.53 | BP105: 1.001059845 | CJ105: -13.17896559 | CN105: 0 | CR105: 1966-10-28 | CS105: 80.24 | CU105: 1966-10-31 | CV105: 80.2
A106: 1966-11-04 | B106: 80.81 | C106: =AVERAGE(INDIRECT($B$6&ROW()-$C$11+1):B106) -> 80.81 | D106: -0.1011123471 | E106: -0.1385779768 | F106: -0.2396903238 | N106: 80.73 | BL106: 1965-05-28 | BM106: 4.1 | BN106: 1966-11-04 | BO106: 5.76 | BP106: 1.001103925 | CJ106: -12.51488579 | CN106: 0 | CR106: 1966-11-04 | CS106: 80.81 | CU106: 1966-11-07 | CV106: 80.73
A107: 1966-11-11 | B107: 81.94 | C107: =AVERAGE(INDIRECT($B$6&ROW()-$C$11+1):B107) -> 81.94 | D107: -0.09807374794 | E107: -0.1132994265 | F107: -0.2113731744 | N107: 81.37 | BL107: 1965-06-01 | BM107: 4.04 | BN107: 1966-11-11 | BO107: 5.76 | BP107: 1.001103925 | CJ107: -11.46407347 | CN107: 0 | CR107: 1966-11-11 | CS107: 81.94 | CU107: 1966-11-14 | CV107: 81.37
A108: 1966-11-18 | B108: 81.26 | C108: =AVERAGE(INDIRECT($B$6&ROW()-$C$11+1):B108) -> 81.26 | D108: -0.110746334 | E108: -0.1084046522 | F108: -0.2191509862 | N108: 80.09 | BL108: 1965-06-02 | BM108: 4.04 | BN108: 1966-11-18 | BO108: 5.76 | BP108: 1.001103925 | CJ108: -11.9037294 | CN108: 0 | CR108: 1966-11-18 | CS108: 81.26 | CU108: 1966-11-21 | CV108: 80.09
A109: 1966-11-25 | B109: 80.85 | C109: =AVERAGE(INDIRECT($B$6&ROW()-$C$11+1):B109) -> 80.85 | D109: -0.1210045662 | E109: -0.09401613626 | F109: -0.2150207025 | N109: 80.71 | BL109: 1965-06-03 | BM109: 4.04 | BN109: 1966-11-25 | BO109: 5.76 | BP109: 1.001103925 | CJ109: -12.14821254 | CN109: 0 | CR109: 1966-11-25 | CS109: 80.85 | CU109: 1966-11-28 | CV109: 80.71
A110: 1966-12-02 | B110: 80.13 | C110: =AVERAGE(INDIRECT($B$6&ROW()-$C$11+1):B110) -> 80.13 | D110: -0.1329798745 | E110: -0.09814293754 | F110: -0.231122812 | N110: 80.24 | BL110: 1965-06-04 | BM110: 4.04 | BN110: 1966-12-02 | BO110: 5.4 | BP110: 1.00103493 | CJ110: -12.20554399 | CN110: 0 | CR110: 1966-12-02 | CS110: 80.13 | CU110: 1966-12-05 | CV110: 80.24
A111: 1966-12-09 | B111: 82.14 | C111: =AVERAGE(INDIRECT($B$6&ROW()-$C$11+1):B111) -> 82.14 | D111: -0.1107502436 | E111: -0.0721789224 | F111: -0.182929166 | N111: 83 | BL111: 1965-06-07 | BM111: 4.04 | BN111: 1966-12-09 | BO111: 5.4 | BP111: 1.00103493 | CJ111: -10.52287582 | CN111: 0 | CR111: 1966-12-09 | CS111: 82.14 | CU111: 1966-12-12 | CV111: 83
A112: 1966-12-16 | B112: 81.58 | C112: =AVERAGE(INDIRECT($B$6&ROW()-$C$11+1):B112) -> 81.58 | D112: -0.118530524 | E112: -0.08889881617 | F112: -0.2074293402 | N112: 81.27 | BL112: 1965-06-08 | BM112: 4.04 | BN112: 1966-12-16 | BO112: 5.4 | BP112: 1.00103493 | CJ112: -11.40312772 | CN112: 0 | CR112: 1966-12-16 | CS112: 81.58 | CU112: 1966-12-19 | CV112: 81.27
A113: 1966-12-23 | B113: 81.47 | C113: =AVERAGE(INDIRECT($B$6&ROW()-$C$11+1):B113) -> 81.47 | D113: -0.1167606245 | E113: -0.09417389371 | F113: -0.2109345182 | G113: =SUMPRODUCT(F66:F113,$G$29:$G$76)*10 -> -2.163077484 | N113: 81.47 | BL113: 1965-06-09 | BM113: 4.04 | BN113: 1966-12-23 | BO113: 5.4 | BP113: 1.00103493 | CJ113: -11.62815924 | CN113: 0 | CR113: 1966-12-23 | CS113: 81.47 | CU113: 1966-12-26 | CV113: 81.47
A114: 1966-12-30 | B114: 80.33 | C114: =AVERAGE(INDIRECT($B$6&ROW()-$C$11+1):B114) -> 80.33 | D114: -0.1271324568 | E114: -0.1245640802 | F114: -0.251696537 | G114: -2.208607579 | N114: 80.33 | BL114: 1965-06-10 | BM114: 4.04 | BN114: 1966-12-30 | BO114: 5.4 | BP114: 1.00103493 | CJ114: -13.09098777 | CN114: 0 | CR114: 1966-12-30 | CS114: 80.33 | CU114: 1967-01-02 | CV114: 80.33
A115: 1967-01-06 | B115: 82.18 | C115: =AVERAGE(INDIRECT($B$6&ROW()-$C$11+1):B115) -> 82.18 | D115: -0.0995946094 | E115: -0.1066420263 | F115: -0.2062366357 | G115: -2.222788078 | N115: 82.81 | BL115: 1965-06-11 | BM115: 4.04 | BN115: 1967-01-06 | BO115: 4.94 | BP115: 1.000946769 | CJ115: -11.76723212 | CN115: 0 | CR115: 1967-01-06 | CS115: 82.18 | CU115: 1967-01-09 | CV115: 82.81
A116: 1967-01-13 | B116: 84.53 | C116: =AVERAGE(INDIRECT($B$6&ROW()-$C$11+1):B116) -> 84.53 | D116: -0.07919389978 | E116: -0.08388425274 | F116: -0.1630781525 | G116: -2.207393216 | N116: 84.31 | BL116: 1965-06-14 | BM116: 4.04 | BN116: 1967-01-13 | BO116: 4.94 | BP116: 1.000946769 | CJ116: -9.593582888 | CN116: 0 | CR116: 1967-01-13 | CS116: 84.53 | CU116: 1967-01-16 | CV116: 84.31
A117: 1967-01-20 | B117: 86.07 | C117: =AVERAGE(INDIRECT($B$6&ROW()-$C$11+1):B117) -> 86.07 | D117: -0.06526933102 | E117: -0.0547990336 | F117: -0.1200683646 | G117: -2.164141758 | N117: 86.39 | BL117: 1965-06-15 | BM117: 4.04 | BN117: 1967-01-20 | BO117: 4.94 | BP117: 1.000946769 | CJ117: -7.91697871 | CN117: 0 | CR117: 1967-01-20 | CS117: 86.07 | CU117: 1967-01-23 | CV117: 86.39
A118: 1967-01-27 | B118: 86.16 | C118: =AVERAGE(INDIRECT($B$6&ROW()-$C$11+1):B118) -> 86.16 | D118: -0.0654083957 | E118: -0.01912568306 | F118: -0.08453407876 | G118: -2.098558396 | N118: 86.66 | BL118: 1965-06-16 | BM118: 4.04 | BN118: 1967-01-27 | BO118: 4.94 | BP118: 1.000946769 | CJ118: -7.662629943 | CN118: 0 | CR118: 1967-01-27 | CS118: 86.16 | CU118: 1967-01-30 | CV118: 86.66
A119: 1967-02-03 | B119: 87.36 | C119: =AVERAGE(INDIRECT($B$6&ROW()-$C$11+1):B119) -> 87.36 | D119: -0.05485232068 | E119: 0.02211302211 | F119: -0.03273929856 | G119: -2.001476339 | N119: 87.18 | Y119: =B119 -> 87.36 | AA119: =IF(AND(M118=1,M119=0),10000,0) -> 0 | AC119: =IF(X119>0,"buy","-") -> - | AD119: =IF(AA119>0,"sell","-") -> - | AF119: =10000*M119 -> 0 | AG119: =ROW() -> 119 | BL119: 1965-06-17 | BM119: 4.04 | BN119: 1967-02-03 | BO119: 5 | BP119: 1.000958268 | CJ119: -6.326399314 | CN119: 0 | CR119: 1967-02-03 | CS119: 87.36 | CU119: 1967-02-06 | CV119: 87.18
A120: 1967-02-10 | B120: 87.49 | C120: =AVERAGE(INDIRECT($B$6&ROW()-$C$11+1):B120) -> 87.49 | D120: -0.06066136998 | E120: 0.02411330914 | F120: -0.03654806084 | G120: -1.907245072 | N120: 87.58 | Y120: =B120 -> 87.49 | AA120: 0 | AC120: - | AD120: - | AF120: 0 | AG120: =ROW() -> 120 | BL120: 1965-06-18 | BM120: 4.04 | BN120: 1967-02-10 | BO120: 5 | BP120: 1.000958268 | CJ120: -6.737021639 | CN120: 0 | CR120: 1967-02-10 | CS120: 87.49 | CU120: 1967-02-13 | CV120: 87.58
A121: 1967-02-17 | B121: 87.89 | C121: =AVERAGE(INDIRECT($B$6&ROW()-$C$11+1):B121) -> 87.89 | D121: -0.06 | E121: 0.006412458491 | F121: -0.05358754151 | G121: -1.824342838 | N121: 87.4 | Y121: 87.89 | AA121: 0 | AC121: - | AD121: - | AF121: 0 | AG121: =ROW() -> 121 | BL121: 1965-06-21 | BM121: 4.04 | BN121: 1967-02-17 | BO121: 5 | BP121: 1.000958268 | CJ121: -4.891245536 | CN121: 0 | CR121: 1967-02-17 | CS121: 87.89 | CU121: 1967-02-20 | CV121: 87.4
A122: 1967-02-24 | B122: 87.41 | C122: =AVERAGE(INDIRECT($B$6&ROW()-$C$11+1):B122) -> 87.41 | D122: -0.06483363646 | E122: 0.01568673019 | F122: -0.04914690627 | G122: -1.738407054 | N122: 86.46 | Y122: 87.41 | AA122: 0 | AC122: - | AD122: - | AF122: 0 | AG122: =ROW() -> 122 | BL122: 1965-06-22 | BM122: 4.04 | BN122: 1967-02-24 | BO122: 5 | BP122: 1.000958268 | CJ122: -4.092604784 | CN122: 0 | CR122: 1967-02-24 | CS122: 87.41 | CU122: 1967-02-27 | CV122: 86.46
A123: 1967-03-03 | B123: 88.29 | C123: =AVERAGE(INDIRECT($B$6&ROW()-$C$11+1):B123) -> 88.29 | D123: -0.05379916408 | E123: 0.02140212864 | F123: -0.03239703543 | G123: -1.641961864 | N123: 88.1 | Y123: 88.29 | AA123: 0 | AC123: - | AD123: - | AF123: 0 | AG123: =ROW() -> 123 | BL123: 1965-06-23 | BM123: 4.04 | BN123: 1967-03-03 | BO123: 4.53 | BP123: 1.000868191 | CJ123: -1.064545047 | CN123: 0 | CR123: 1967-03-03 | CS123: 88.29 | CU123: 1967-03-06 | CV123: 88.1
A124: 1967-03-10 | B124: 88.89 | C124: =AVERAGE(INDIRECT($B$6&ROW()-$C$11+1):B124) -> 88.89 | D124: -0.04685824576 | E124: 0.02751127037 | F124: -0.01934697539 | G124: -1.538414973 | N124: 88.43 | Y124: 88.89 | AA124: 0 | AC124: - | AD124: - | AF124: 0 | AG124: =ROW() -> 124 | BL124: 1965-06-24 | BM124: 4.04 | BN124: 1967-03-10 | BO124: 4.53 | BP124: 1.000868191 | CJ124: 0.04501969612 | CN124: 0 | CR124: 1967-03-10 | CS124: 88.89 | CU124: 1967-03-13 | CV124: 88.43
A125: 1967-03-17 | B125: 90.25 | C125: =AVERAGE(INDIRECT($B$6&ROW()-$C$11+1):B125) -> 90.25 | D125: -0.03794904594 | E125: 0.04238854239 | F125: 0.004439496445 | G125: -1.421760673 | N125: 90.2 | Y125: 90.25 | AA125: 0 | AC125: - | AD125: - | AF125: 0 | AG125: =ROW() -> 125 | BL125: 1965-06-25 | BM125: 4.04 | BN125: 1967-03-17 | BO125: 4.53 | BP125: 1.000868191 | CJ125: 1.942844234 | CN125: 0 | CR125: 1967-03-17 | CS125: 90.25 | CU125: 1967-03-20 | CV125: 90.2
A126: 1967-03-24 | B126: 90.94 | C126: =AVERAGE(INDIRECT($B$6&ROW()-$C$11+1):B126) -> 90.94 | D126: -0.01590736933 | E126: 0.06225908188 | F126: 0.04635171255 | G126: -1.281796762 | N126: 90.87 | Y126: 90.94 | AA126: 0 | AC126: - | AD126: - | AF126: 0 | AG126: =ROW() -> 126 | BL126: 1965-06-28 | BM126: 4.04 | BN126: 1967-03-24 | BO126: 4.53 | BP126: 1.000868191 | CJ126: 1.563547018 | CN126: 0 | CR126: 1967-03-24 | CS126: 90.94 | CU126: 1967-03-27 | CV126: 90.87
A127: 1967-03-31 | B127: 90.2 | C127: =AVERAGE(INDIRECT($B$6&ROW()-$C$11+1):B127) -> 90.2 | D127: -0.01031380294 | E127: 0.02956283529 | F127: 0.01924903235 | G127: =SUMPRODUCT(F80:F127,$G$29:$G$76)*10 -> -1.161560176 | N127: 89.24 | Y127: 90.2 | AA127: 0 | AC127: - | AD127: - | AF127: 0 | AG127: =ROW() -> 127 | BL127: 1965-06-29 | BM127: 4.04 | BN127: 1967-03-31 | BO127: 4.53 | BP127: 1.000868191 | CJ127: 0.28908161 | CN127: 0 | CR127: 1967-03-31 | CS127: 90.2 | CU127: 1967-04-03 | CV127: 89.24
A128: 1967-04-07 | B128: 89.36 | C128: =AVERAGE(INDIRECT($B$6&ROW()-$C$11+1):B128) -> 89.36 | D128: 0.001344688481 | E128: 0.0261828204 | F128: 0.02752750888 | G128: -1.040566427 | N128: 88.24 | Y128: 89.36 | AA128: 0 | AC128: - | AD128: - | AF128: 0 | AG128: =ROW() -> 128 | BL128: 1965-06-30 | BM128: 4.04 | BN128: 1967-04-07 | BO128: 4.05 | BP128: 1.000776197 | CJ128: -2.615518745 | CN128: 0 | CR128: 1967-04-07 | CS128: 89.36 | CU128: 1967-04-10 | CV128: 88.24
A129: 1967-04-14 | B129: 90.43 | C129: =AVERAGE(INDIRECT($B$6&ROW()-$C$11+1):B129) -> 90.43 | D129: 0.01778277997 | E129: 0.05877531905 | F129: 0.07655809902 | G129: -0.8951877697 | N129: 91.07 | Y129: 90.43 | AA129: 0 | AC129: - | AD129: - | AF129: 0 | AG129: =ROW() -> 129 | BL129: 1965-07-01 | BM129: 4.09 | BN129: 1967-04-14 | BO129: 4.05 | BP129: 1.000776197 | CJ129: -1.695836504 | CN129: 0 | CR129: 1967-04-14 | CS129: 90.43 | CU129: 1967-04-17 | CV129: 91.07
A130: 1967-04-21 | B130: 92.3 | C130: =AVERAGE(INDIRECT($B$6&ROW()-$C$11+1):B130) -> 92.3 | D130: 0.04258443465 | E130: 0.1040669856 | F130: 0.1466514203 | G130: =SUMPRODUCT(F83:F130,$G$29:$G$76)*10 -> -0.7134845706 | N130: 92.62 | Y130: 92.3 | AA130: 0 | AC130: - | AD130: - | AF130: 0 | AG130: =ROW() -> 130 | BL130: 1965-07-02 | BM130: 4.09 | BN130: 1967-04-21 | BO130: 4.05 | BP130: 1.000776197 | CJ130: 0.03251327625 | CN130: 0 | CR130: 1967-04-21 | CS130: 92.3 | CU130: 1967-04-24 | CV130: 92.62
A131: 1967-04-28 | B131: 94.01 | C131: =AVERAGE(INDIRECT($B$6&ROW()-$C$11+1):B131) -> 94.01 | D131: 0.04992182265 | E131: 0.1191666667 | F131: 0.1690884893 | G131: -0.526360443 | N131: 93.84 | Y131: 94.01 | AA131: 0 | AC131: - | AD131: - | AF131: 0 | AG131: =ROW() -> 131 | BL131: 1965-07-06 | BM131: 4.09 | BN131: 1967-04-28 | BO131: 4.05 | BP131: 1.000776197 | CJ131: 3.239622227 | CN131: 0 | CR131: 1967-04-28 | CS131: 94.01 | CU131: 1967-05-01 | CV131: 93.84
A132: 1967-05-05 | B132: 94.44 | C132: =AVERAGE(INDIRECT($B$6&ROW()-$C$11+1):B132) -> 94.44 | D132: 0.05003335557 | E132: 0.135505591 | F132: 0.1855389465 | G132: -0.3364550059 | N132: 94.58 | Y132: 94.44 | AA132: 0 | AC132: - | AD132: - | AF132: 0 | AG132: =ROW() -> 132 | BL132: 1965-07-07 | BM132: 4.09 | BN132: 1967-05-05 | BO132: 3.94 | BP132: 1.000755115 | CJ132: 7.513661202 | CN132: 0 | CR132: 1967-05-05 | CS132: 94.44 | CU132: 1967-05-08 | CV132: 94.58
A133: 1967-05-12 | B133: 93.48 | C133: =AVERAGE(INDIRECT($B$6&ROW()-$C$11+1):B133) -> 93.48 | D133: 0.018744551 | E133: 0.1740768651 | F133: 0.1928214161 | G133: -0.1506449711 | N133: 92.71 | Y133: 93.48 | AA133: 0 | AC133: - | AD133: - | AF133: 0 | AG133: =ROW() -> 133 | BL133: 1965-07-08 | BM133: 4.09 | BN133: 1967-05-12 | BO133: 3.94 | BP133: 1.000755115 | CJ133: 9.371709372 | CN133: 0 | CR133: 1967-05-12 | CS133: 93.48 | CU133: 1967-05-15 | CV133: 92.71
A134: 1967-05-19 | B134: 92.07 | C134: =AVERAGE(INDIRECT($B$6&ROW()-$C$11+1):B134) -> 92.07 | D134: 0.0008696597456 | E134: 0.2049469965 | F134: 0.2058166562 | G134: 0.0337066607 | N134: 91.67 | Y134: 92.07 | AA134: 0 | AC134: - | AD134: - | AF134: 0 | AG134: =ROW() -> 134 | BL134: 1965-07-09 | BM134: 4.09 | BN134: 1967-05-19 | BO134: 3.94 | BP134: 1.000755115 | CJ134: 7.772445277 | CN134: 0 | CR134: 1967-05-19 | CS134: 92.07 | CU134: 1967-05-22 | CV134: 91.67
A135: 1967-05-26 | B135: 90.98 | C135: =AVERAGE(INDIRECT($B$6&ROW()-$C$11+1):B135) -> 90.98 | D135: -0.01398070879 | E135: 0.1751485404 | F135: 0.1611678316 | G135: 0.1797923849 | N135: 90.49 | Y135: 90.98 | AA135: 0 | AC135: - | AD135: - | AF135: 0 | AG135: =ROW() -> 135 | BL135: 1965-07-12 | BM135: 4.09 | BN135: 1967-05-26 | BO135: 3.94 | BP135: 1.000755115 | CJ135: 4.179548838 | CN135: 0 | CR135: 1967-05-26 | CS135: 90.98 | CU135: 1967-05-29 | CV135: 90.49
A136: 1967-06-02 | B136: 89.79 | C136: =AVERAGE(INDIRECT($B$6&ROW()-$C$11+1):B136) -> 89.79 | D136: -0.01394684823 | E136: 0.1769563508 | F136: 0.1630095025 | G136: 0.3178628663 | N136: 88.43 | Y136: 89.79 | AA136: 0 | AC136: - | AD136: - | AF136: 0 | AG136: =ROW() -> 136 | BL136: 1965-07-13 | BM136: 4.09 | BN136: 1967-06-02 | BO136: 3.98 | BP136: 1.000762781 | CJ136: 4.334185452 | CN136: 0 | CR136: 1967-06-02 | CS136: 89.79 | CU136: 1967-06-05 | CV136: 88.43
A137: 1967-06-09 | B137: 91.56 | C137: =AVERAGE(INDIRECT($B$6&ROW()-$C$11+1):B137) -> 91.56 | D137: 0.04234972678 | E137: 0.1446430804 | F137: 0.1869928072 | G137: 0.4618180281 | N137: 92.04 | Y137: 91.56 | AA137: 0 | AC137: - | AD137: - | AF137: 0 | AG137: =ROW() -> 137 | BL137: 1965-07-14 | BM137: 4.09 | BN137: 1967-06-09 | BO137: 3.98 | BP137: 1.000762781 | CJ137: 5.923183711 | CN137: 0 | CR137: 1967-06-09 | CS137: 91.56 | CU137: 1967-06-12 | CV137: 92.04
A138: 1967-06-16 | B138: 92.54 | C138: =AVERAGE(INDIRECT($B$6&ROW()-$C$11+1):B138) -> 92.54 | D138: 0.08271908272 | E138: 0.1914510107 | F138: 0.2741700934 | G138: 0.6503646319 | N138: 92.51 | Y138: 92.54 | AA138: 0 | AC138: - | AD138: - | AF138: 0 | AG138: =ROW() -> 138 | BL138: 1965-07-15 | BM138: 4.09 | BN138: 1967-06-16 | BO138: 3.98 | BP138: 1.000762781 | CJ138: 6.970292452 | CN138: 0 | CR138: 1967-06-16 | CS138: 92.54 | CU138: 1967-06-19 | CV138: 92.51
A139: 1967-06-23 | B139: 92 | C139: =AVERAGE(INDIRECT($B$6&ROW()-$C$11+1):B139) -> 92 | D139: 0.07690506848 | E139: 0.2016718913 | F139: 0.2785769598 | G139: 0.8318498589 | H139: =AVERAGE(G139:OFFSET(G139,H$11*-1+1,0)) -> 0.2485368067 | N139: 91.64 | Y139: 92 | AA139: 0 | AC139: - | AD139: - | AF139: 0 | AG139: =ROW() -> 139 | BL139: 1965-07-16 | BM139: 4.09 | BN139: 1967-06-23 | BO139: =VLOOKUP(BN139,$BL$4:$BM$12999,2) -> 3.98 | BP139: 1.000762781 | CJ139: 6.26010626 | CN139: 0 | CR139: 1967-06-23 | CS139: 92 | CU139: 1967-06-26 | CV139: 91.64
A140: 1967-06-30 | B140: 90.64 | C140: =AVERAGE(INDIRECT($B$6&ROW()-$C$11+1):B140) -> 90.64 | D140: 0.03790221001 | E140: 0.2382513661 | F140: 0.2761535761 | G140: 1.00258701 | H140: =H139*(1-H$14)+G140*H$14 -> 0.4161035186 | N140: 90.91 | Y140: 90.64 | AA140: 0 | AC140: - | AD140: - | AF140: 0 | AG140: =ROW() -> 140 | BL140: 1965-07-19 | BM140: 4.09 | BN140: =A140 -> 1967-06-30 | BO140: 3.98 | BP140: =1+BO140/$BP$3/100 -> 1.000762781 | CJ140: 5.875481836 | CN140: =$CN$11 -> 0 | CR140: 1967-06-30 | CS140: 90.64 | CU140: 1967-07-03 | CV140: 90.91
A141: 1967-07-07 | B141: 91.69 | C141: =AVERAGE(INDIRECT($B$6&ROW()-$C$11+1):B141) -> 91.69 | D141: 0.06541947479 | E141: 0.196997389 | F141: 0.2624168638 | G141: 1.155618113 | H141: 0.580440095 | N141: 92.05 | Y141: 91.69 | AA141: 0 | AC141: - | AD141: - | AF141: 0 | AG141: =ROW() -> 141 | BL141: 1965-07-20 | BM141: 4.09 | BN141: 1967-07-07 | BO141: 3.79 | BP141: 1.000726367 | CJ141: 4.657002625 | CN141: 0 | CR141: 1967-07-07 | CS141: 91.69 | CU141: 1967-07-10 | CV141: 92.05
A142: 1967-07-14 | B142: 92.74 | C142: =AVERAGE(INDIRECT($B$6&ROW()-$C$11+1):B142) -> 92.74 | D142: 0.07288292457 | E142: 0.1860851771 | F142: 0.2589681017 | G142: 1.297516678 | H142: 0.7397904468 | N142: 92.75 | Y142: 92.74 | AA142: 0 | AC142: - | AD142: - | AF142: 0 | AG142: =ROW() -> 142 | BL142: 1965-07-21 | BM142: 4.09 | BN142: 1967-07-14 | BO142: 3.79 | BP142: 1.000726367 | CJ142: 6.499770326 | CN142: 0 | CR142: 1967-07-14 | CS142: 92.74 | CU142: 1967-07-17 | CV142: 92.75
A143: 1967-07-21 | B143: 94.04 | C143: =AVERAGE(INDIRECT($B$6&ROW()-$C$11+1):B143) -> 94.04 | D143: 0.08704196047 | E143: 0.1719840479 | F143: 0.2590260083 | G143: 1.430168314 | H143: 0.8932077506 | N143: 93.73 | Y143: 94.04 | AA143: 0 | AC143: - | AD143: - | AF143: 0 | AG143: =ROW() -> 143 | BL143: 1965-07-22 | BM143: 4.09 | BN143: 1967-07-21 | BO143: 3.79 | BP143: 1.000726367 | CJ143: 10.10420325 | CN143: 0 | CR143: 1967-07-21 | CS143: 94.04 | CU143: 1967-07-24 | CV143: 93.73
A144: 1967-07-28 | B144: 94.49 | C144: =AVERAGE(INDIRECT($B$6&ROW()-$C$11+1):B144) -> 94.49 | D144: =$C144/OFFSET($C144,D$11*-1,0)-1 -> 0.09136059136 | E144: 0.1692859795 | F144: =D144+E144 -> 0.2606465708 | G144: 1.555431746 | H144: 1.040368638 | N144: 94.75 | Y144: 94.49 | AA144: 0 | AC144: - | AD144: - | AF144: 0 | AG144: =ROW() -> 144 | BL144: 1965-07-23 | BM144: 4.09 | BN144: 1967-07-28 | BO144: 3.79 | BP144: 1.000726367 | CJ144: =($B144/OFFSET($B144,CJ$11*-1,0)-1)*100 -> 13.02631579 | CN144: 0 | CR144: 1967-07-28 | CS144: 94.49 | CU144: 1967-07-31 | CV144: 94.75
A145: 1967-08-04 | B145: 95.83 | C145: =AVERAGE(INDIRECT($B$6&ROW()-$C$11+1):B145) -> 95.83 | D145: 0.1193785773 | E145: 0.1695142787 | F145: 0.288892856 | G145: 1.688949064 | H145: 1.184497622 | N145: 95.58 | Y145: 95.83 | AA145: 0 | AC145: - | AD145: - | AF145: 0 | AG145: =ROW() -> 145 | BL145: 1965-07-26 | BM145: 4.09 | BN145: 1967-08-04 | BO145: 3.9 | BP145: 1.000747449 | CJ145: 14.08333333 | CN145: 0 | CR145: 1967-08-04 | CS145: 95.83 | CU145: 1967-08-07 | CV145: 95.58
A146: 1967-08-11 | B146: 95.15 | C146: =AVERAGE(INDIRECT($B$6&ROW()-$C$11+1):B146) -> 95.15 | D146: 0.08606323479 | E146: 0.1709328083 | F146: 0.2569960431 | G146: 1.793668553 | H146: 1.31986894 | N146: 94.64 | Y146: 95.15 | AA146: 0 | AC146: - | AD146: - | AF146: 0 | AG146: =ROW() -> 146 | BL146: 1965-07-27 | BM146: 4.09 | BN146: 1967-08-11 | BO146: 3.9 | BP146: 1.000747449 | CJ146: 14.4042323 | CN146: 0 | CR146: 1967-08-11 | CS146: 95.15 | CU146: 1967-08-14 | CV146: 94.64
A147: 1967-08-18 | B147: 94.78 | C147: =AVERAGE(INDIRECT($B$6&ROW()-$C$11+1):B147) -> 94.78 | D147: 0.0884244373 | E147: 0.1722943723 | F147: 0.2607188096 | G147: 1.891009935 | H147: 1.446789161 | N147: 94.25 | Y147: 94.78 | AA147: 0 | AC147: - | AD147: - | AF147: 0 | AG147: =ROW() -> 147 | BL147: 1965-07-28 | BM147: 4.09 | BN147: 1967-08-18 | BO147: 3.9 | BP147: 1.000747449 | CJ147: 19.0404421 | CN147: 0 | CR147: 1967-08-18 | CS147: 94.78 | CU147: 1967-08-21 | CV147: 94.25
A148: 1967-08-25 | B148: 92.7 | C148: =AVERAGE(INDIRECT($B$6&ROW()-$C$11+1):B148) -> 92.7 | D148: 0.08535300316 | E148: 0.1568700861 | F148: 0.2422230893 | G148: 1.968297936 | H148: 1.56268 | N148: 92.64 | Y148: 92.7 | AA148: 0 | AC148: - | AD148: - | AF148: 0 | AG148: =ROW() -> 148 | BL148: 1965-07-29 | BM148: 4.09 | BN148: 1967-08-25 | BO148: 3.9 | BP148: 1.000747449 | CJ148: 21.31919906 | CN148: 0 | CR148: 1967-08-25 | CS148: 92.7 | CU148: 1967-08-28 | CV148: 92.64
A149: 1967-09-01 | B149: 93.68 | C149: =AVERAGE(INDIRECT($B$6&ROW()-$C$11+1):B149) -> 93.68 | D149: 0.1205741627 | E149: 0.1404918432 | F149: 0.2610660059 | G149: 2.049329727 | H149: 1.670824384 | N149: 93.68 | Y149: 93.68 | AA149: 0 | AC149: - | AD149: - | AF149: 0 | AG149: =ROW() -> 149 | BL149: 1965-07-30 | BM149: 4.09 | BN149: 1967-09-01 | BO149: 3.99 | BP149: 1.000764698 | CJ149: 21.00232498 | CN149: 0 | CR149: 1967-09-01 | CS149: 93.68 | CU149: 1967-09-04 | CV149: 93.68
A150: 1967-09-08 | B150: 94.36 | C150: =AVERAGE(INDIRECT($B$6&ROW()-$C$11+1):B150) -> 94.36 | D150: 0.1233333333 | E150: 0.1566560431 | F150: 0.2799893765 | G150: 2.134611773 | H150: 1.773888248 | N150: 94.54 | Y150: 94.36 | AA150: 0 | AC150: - | AD150: - | AF150: 0 | AG150: =ROW() -> 150 | BL150: 1965-08-02 | BM150: 4.12 | BN150: 1967-09-08 | BO150: 3.99 | BP150: 1.000764698 | CJ150: 23.68593525 | CN150: 0 | CR150: 1967-09-08 | CS150: 94.36 | CU150: 1967-09-11 | CV150: 94.54
A151: 1967-09-15 | B151: 96.27 | C151: =AVERAGE(INDIRECT($B$6&ROW()-$C$11+1):B151) -> 96.27 | D151: 0.1575087171 | E151: 0.1816619615 | F151: 0.3391706785 | G151: 2.248857422 | H151: 1.879436953 | N151: 96.53 | Y151: 96.27 | AA151: 0 | AC151: - | AD151: - | AF151: 0 | AG151: =ROW() -> 151 | BL151: 1965-08-03 | BM151: 4.12 | BN151: 1967-09-15 | BO151: 3.99 | BP151: 1.000764698 | CJ151: 20.35254407 | CN151: 0 | CR151: 1967-09-15 | CS151: 96.27 | CU151: 1967-09-18 | CV151: 96.53
A152: 1967-09-22 | B152: 97 | C152: =AVERAGE(INDIRECT($B$6&ROW()-$C$11+1):B152) -> 97 | D152: 0.2182868626 | E152: 0.2075189842 | F152: 0.4258058468 | G152: 2.408565484 | H152: 1.997021071 | N152: 97.59 | Y152: 97 | AA152: 0 | AC152: - | AD152: - | AF152: 0 | AG152: =ROW() -> 152 | BL152: 1965-08-04 | BM152: 4.12 | BN152: 1967-09-22 | BO152: 3.99 | BP152: 1.000764698 | CJ152: 24.88734389 | CN152: 0 | CR152: 1967-09-22 | CS152: 97 | CU152: 1967-09-25 | CV152: 97.59
A153: 1967-09-29 | B153: 96.71 | C153: =AVERAGE(INDIRECT($B$6&ROW()-$C$11+1):B153) -> 96.71 | D153: 0.2656720325 | E153: 0.176807009 | F153: 0.4424790415 | G153: 2.569621809 | H153: 2.12426568 | N153: 96.32 | Y153: 96.71 | AA153: 0 | AC153: - | AD153: - | AF153: 0 | AG153: =ROW() -> 153 | BL153: 1965-08-05 | BM153: 4.12 | BN153: 1967-09-29 | BO153: 3.99 | BP153: 1.000764698 | CJ153: 26.31922675 | CN153: 0 | CR153: 1967-09-29 | CS153: 96.71 | CU153: 1967-10-02 | CV153: 96.32
A154: 1967-10-06 | B154: 97.26 | C154: =AVERAGE(INDIRECT($B$6&ROW()-$C$11+1):B154) -> 97.26 | D154: 0.2562645311 | E154: 0.150597421 | F154: 0.4068619522 | G154: 2.69969682 | H154: 2.252139266 | N154: 97.51 | Y154: 97.26 | AA154: 0 | AC154: - | AD154: - | AF154: 0 | AG154: =ROW() -> 154 | BL154: 1965-08-06 | BM154: 4.12 | BN154: 1967-10-06 | BO154: 3.88 | BP154: 1.000743616 | CJ154: 32.86885246 | CN154: 0 | CR154: 1967-10-06 | CS154: 97.26 | CU154: 1967-10-09 | CV154: 97.51
A155: 1967-10-13 | B155: 96 | C155: =AVERAGE(INDIRECT($B$6&ROW()-$C$11+1):B155) -> 96 | D155: 0.2583562721 | E155: 0.1153712095 | F155: 0.3737274816 | G155: 2.801053801 | H155: 2.374120274 | N155: 95.25 | Y155: 96 | AA155: 0 | AC155: - | AD155: - | AF155: 0 | AG155: =ROW() -> 155 | BL155: 1965-08-09 | BM155: 4.12 | BN155: 1967-10-13 | BO155: 3.88 | BP155: 1.000743616 | CJ155: 25.32637076 | CN155: 0 | CR155: 1967-10-13 | CS155: 96 | CU155: 1967-10-16 | CV155: 95.25
A156: 1967-10-20 | B156: 95.38 | C156: =AVERAGE(INDIRECT($B$6&ROW()-$C$11+1):B156) -> 95.38 | D156: 0.1923990499 | E156: 0.1070102136 | F156: 0.2994092634 | G156: 2.849677686 | H156: 2.479799699 | N156: 94.96 | Y156: 95.38 | AA156: 0 | AC156: - | AD156: - | AF156: 0 | AG156: =ROW() -> 156 | BL156: 1965-08-10 | BM156: 4.12 | BN156: 1967-10-20 | BO156: 3.88 | BP156: 1.000743616 | CJ156: 21.98490856 | CN156: 0 | CR156: 1967-10-20 | CS156: 95.38 | CU156: 1967-10-23 | CV156: 94.96
A157: 1967-10-27 | B157: 94.96 | C157: =AVERAGE(INDIRECT($B$6&ROW()-$C$11+1):B157) -> 94.96 | D157: 0.2226084717 | E157: 0.086996337 | F157: 0.3096048087 | G157: 2.89844364 | H157: 2.572831686 | N157: 94.79 | Y157: 94.96 | AA157: 0 | AC157: - | AD157: - | AF157: 0 | AG157: =ROW() -> 157 | BL157: 1965-08-11 | BM157: 4.12 | BN157: 1967-10-27 | BO157: 3.88 | BP157: 1.000743616 | CJ157: 18.3449651 | CN157: 0 | CR157: 1967-10-27 | CS157: 94.96 | CU157: 1967-10-30 | CV157: 94.79
A158: 1967-11-03 | B158: 91.78 | C158: =AVERAGE(INDIRECT($B$6&ROW()-$C$11+1):B158) -> 91.78 | D158: 0.1987983281 | E158: 0.04903417533 | F158: 0.2478325034 | G158: 2.903992186 | H158: 2.646422908 | N158: 91.48 | Y158: 91.78 | AA158: 0 | AC158: - | AD158: - | AF158: 0 | AG158: =ROW() -> 158 | BL158: 1965-08-12 | BM158: 4.12 | BN158: 1967-11-03 | BO158: 4.13 | BP158: 1.00079153 | CJ158: 13.57505259 | CN158: 0 | CR158: 1967-11-03 | CS158: 91.78 | CU158: 1967-11-06 | CV158: 91.48
A159: 1967-11-10 | B159: 92.21 | C159: =AVERAGE(INDIRECT($B$6&ROW()-$C$11+1):B159) -> 92.21 | D159: 0.2596994536 | E159: 0.04915234953 | F159: 0.3088518031 | G159: 2.942706203 | H159: 2.71226364 | N159: 91.97 | Y159: 92.21 | AA159: 0 | AC159: - | AD159: - | AF159: 0 | AG159: =ROW() -> 159 | BL159: 1965-08-13 | BM159: 4.12 | BN159: 1967-11-10 | BO159: 4.13 | BP159: 1.00079153 | CJ159: 12.53356114 | CN159: 0 | CR159: 1967-11-10 | CS159: 92.21 | CU159: 1967-11-13 | CV159: 91.97
A160: 1967-11-17 | B160: 92.82 | C160: =AVERAGE(INDIRECT($B$6&ROW()-$C$11+1):B160) -> 92.82 | D160: 0.2117493473 | E160: 0.06189223201 | F160: 0.2736415793 | G160: 2.954595788 | H160: 2.766115229 | N160: 91.65 | Y160: 92.82 | AA160: 0 | AC160: - | AD160: - | AF160: 0 | AG160: =ROW() -> 160 | BL160: 1965-08-16 | BM160: 4.12 | BN160: 1967-11-17 | BO160: 4.13 | BP160: 1.00079153 | CJ160: 14.22594142 | CN160: 0 | CR160: 1967-11-17 | CS160: 92.82 | CU160: 1967-11-20 | CV160: 91.65
A161: 1967-11-24 | B161: 93.9 | C161: =AVERAGE(INDIRECT($B$6&ROW()-$C$11+1):B161) -> 93.9 | D161: 0.2009208339 | E161: 0.06354060483 | F161: 0.2644614387 | G161: 2.956260401 | H161: 2.808369712 | N161: 94.17 | Y161: 93.9 | AA161: 0 | AC161: - | AD161: - | AF161: 0 | AG161: =ROW() -> 161 | BL161: 1965-08-17 | BM161: 4.12 | BN161: 1967-11-24 | BO161: 4.13 | BP161: 1.00079153 | CJ161: 16.14100186 | CN161: 0 | CR161: 1967-11-24 | CS161: 93.9 | CU161: 1967-11-27 | CV161: 94.17
A162: 1967-12-01 | B162: 94.5 | C162: =AVERAGE(INDIRECT($B$6&ROW()-$C$11+1):B162) -> 94.5 | D162: 0.1777168495 | E162: 0.0631117111 | F162: 0.2408285606 | G162: 2.940043282 | H162: 2.837630505 | N162: 95.1 | Y162: 94.5 | AA162: 0 | AC162: - | AD162: - | AF162: 0 | AG162: =ROW() -> 162 | BL162: 1965-08-18 | BM162: 4.12 | BN162: 1967-12-01 | BO162: 4.51 | BP162: 1.000864358 | CJ162: 17.93335829 | CN162: 0 | CR162: 1967-12-01 | CS162: 94.5 | CU162: 1967-12-04 | CV162: 95.1
A163: 1967-12-08 | B163: 95.42 | C163: =AVERAGE(INDIRECT($B$6&ROW()-$C$11+1):B163) -> 95.42 | D163: 0.1807944561 | E163: 0.05728531856 | F163: 0.2380797747 | G163: 2.920376574 | H163: 2.85601852 | N163: 95.12 | Y163: 95.42 | AA163: 0 | AC163: - | AD163: - | AF163: 0 | AG163: =ROW() -> 163 | BL163: 1965-08-19 | BM163: 4.12 | BN163: 1967-12-08 | BO163: 4.51 | BP163: 1.000864358 | CJ163: 16.16751887 | CN163: 0 | CR163: 1967-12-08 | CS163: 95.42 | CU163: 1967-12-11 | CV163: 95.12
A164: 1967-12-15 | B164: 95.03 | C164: =AVERAGE(INDIRECT($B$6&ROW()-$C$11+1):B164) -> 95.03 | D164: 0.1597510373 | E164: 0.0449747086 | F164: 0.2047257459 | G164: 2.879188651 | H164: 2.861167438 | N164: 94.77 | Y164: 95.03 | AA164: 0 | AC164: - | AD164: - | AF164: 0 | AG164: =ROW() -> 164 | BL164: 1965-08-20 | BM164: 4.12 | BN164: 1967-12-15 | BO164: 4.51 | BP164: 1.000864358 | CJ164: 16.48688404 | CN164: 0 | CR164: 1967-12-15 | CS164: 95.03 | CU164: 1967-12-18 | CV164: 94.77
A165: 1967-12-22 | B165: 95.2 | C165: =AVERAGE(INDIRECT($B$6&ROW()-$C$11+1):B165) -> 95.2 | D165: 0.1715481172 | E165: 0.05543237251 | F165: 0.2269804897 | G165: 2.851125064 | H165: 2.858935799 | M165: 1 | N165: 95.2 | Y165: 95.2 | AA165: 0 | AC165: - | AD165: - | AF165: 10000 | AG165: =ROW() -> 165 | BL165: 1965-08-23 | BM165: 4.12 | BN165: 1967-12-22 | BO165: 4.51 | BP165: 1.000864358 | CJ165: 16.85282926 | CN165: 0 | CR165: 1967-12-22 | CS165: 95.2 | CU165: 1967-12-25 | CV165: 95.2
A166: 1967-12-29 | B166: 96.47 | C166: =AVERAGE(INDIRECT($B$6&ROW()-$C$11+1):B166) -> 96.47 | D166: 0.1931972789 | E166: 0.07956580125 | F166: 0.2727630802 | G166: 2.85016155 | H166: 2.856985966 | J166: =IF(AND(G166>H166,G166<$M$11),1,0) -> 0 | K166: =IF(AND(J166=1,G166-H166>$K$11),1,0) -> 0 | L166: =IF(MAX(G166:OFFSET(G166,I$11*-1+1,0))-G166>=$L$11,1,0) -> 1 | M166: =IF(S166=0,0,IF(S166=1,1,IF(AND(M165=1,V166>=$V$9),0,M165))) -> 0 | N166: 96.47 | O166: =IF(M166<>M165,N166,O165) -> 96.47 | Q166: 10000 | Y166: 96.47 | AA166: 10000 | AC166: - | AD166: sell | AF166: 0 | AG166: =ROW() -> 166 | BL166: 1965-08-24 | BM166: 4.12 | BN166: 1967-12-29 | BO166: 4.51 | BP166: 1.000864358 | CJ166: 20.09212 | CN166: 0 | CR166: 1967-12-29 | CS166: 96.47 | CU166: 1968-01-01 | CV166: 96.47
A167: 1968-01-05 | B167: 95.94 | C167: =AVERAGE(INDIRECT($B$6&ROW()-$C$11+1):B167) -> 95.94 | D167: 0.1973043804 | E167: 0.06093110693 | F167: 0.2582354873 | G167: 2.839125509 | H167: 2.853016976 | J167: =IF(AND(G167>H167,G167<$M$11),1,0) -> 0 | K167: =IF(AND(J167=1,G167-H167>$K$11),1,0) -> 0 | L167: =IF(MAX(G167:OFFSET(G167,I$11*-1+1,0))-G167>=$L$11,1,0) -> 1 | M167: =IF(S167=0,0,IF(S167=1,1,IF(AND(M166=1,V167>=$V$9),0,M166))) -> 0 | N167: 96.62 | O167: 96.47 | P167: =IF(M167<>M166,((O167-O166)/O166)*M166,0) -> 0 | Q167: =Q166*(1+P167) -> 10000 | R167: =(1+(N167/O167-1)*M167)*Q167 -> 10000 | S167: =IF(AND(SUM(J165,K165,L165)<3,SUM(J166,K166,L166)=3,SUM(J167,K167,L167)=3),1,IF(AND(S166>0,S166<$V$10),S166+1,0)) -> 0 | T167: =IF(S167=0,0,IF(S167=1,N167,T166)) -> 0 | U167: =N167 -> 96.62 | V167: =IF(S167<>0,U167/T167-1,0) -> 0 | X167: =IF(AND(M166=0,M167=1),10000,0) -> 0 | Y167: 95.94 | AA167: 0 | AC167: - | AD167: - | AF167: 0 | AG167: =ROW() -> 167 | BL167: 1965-08-25 | BM167: 4.12 | BN167: 1968-01-05 | BO167: 4.6 | BP167: 1.000881607 | CJ167: 16.74373327 | CN167: 0 | CR167: 1968-01-05 | CS167: 95.94 | CU167: 1968-01-08 | CV167: 96.62
A168: 1968-01-12 | B168: 96.72 | C168: =AVERAGE(INDIRECT($B$6&ROW()-$C$11+1):B168) -> 96.72 | D168: 0.1775018262 | E168: 0.04788732394 | F168: 0.2253891501 | G168: 2.806344195 | H168: 2.842645247 | J168: 0 | K168: 0 | L168: =IF(MAX(G168:OFFSET(G168,I$11*-1+1,0))-G168>=$L$11,1,0) -> 1 | M168: 0 | N168: 96.42 | O168: 96.47 | P168: 0 | Q168: 10000 | R168: 10000 | S168: 0 | T168: 0 | U168: =N168 -> 96.42 | V168: 0 | X168: 0 | Y168: 96.72 | AA168: 0 | AC168: - | AD168: - | AF168: 0 | AG168: =ROW() -> 168 | BL168: 1965-08-26 | BM168: 4.12 | BN168: 1968-01-12 | BO168: 4.6 | BP168: 1.000881607 | CJ168: 14.42091565 | CN168: 0 | CR168: 1968-01-12 | CS168: 96.72 | CU168: 1968-01-15 | CV168: 96.42
A169: 1968-01-19 | B169: 95.24 | C169: =AVERAGE(INDIRECT($B$6&ROW()-$C$11+1):B169) -> 95.24 | D169: 0.1674430007 | E169: 0.0130837145 | F169: 0.1805267152 | G169: 2.745192093 | H169: 2.82098899 | J169: 0 | K169: 0 | L169: =IF(MAX(G169:OFFSET(G169,I$11*-1+1,0))-G169>=$L$11,1,0) -> 1 | M169: 0 | N169: 94.03 | O169: 96.47 | P169: 0 | Q169: 10000 | R169: 10000 | S169: 0 | T169: 0 | U169: 94.03 | V169: 0 | X169: 0 | Y169: 95.24 | AA169: 0 | AC169: - | AD169: - | AF169: 0 | AG169: =ROW() -> 169 | BL169: 1965-08-27 | BM169: 4.12 | BN169: 1968-01-19 | BO169: 4.6 | BP169: 1.000881607 | CJ169: 10.65411874 | CN169: 0 | CR169: 1968-01-19 | CS169: 95.24 | CU169: 1968-01-22 | CV169: 94.03
A170: 1968-01-26 | B170: 93.45 | C170: =AVERAGE(INDIRECT($B$6&ROW()-$C$11+1):B170) -> 93.45 | D170: 0.1470479931 | E170: -0.01048284625 | F170: 0.1365651469 | G170: 2.657519081 | H170: 2.784662344 | J170: 0 | K170: 0 | L170: =IF(MAX(G170:OFFSET(G170,I$11*-1+1,0))-G170>=$L$11,1,0) -> 1 | M170: 0 | N170: 93.35 | O170: 96.47 | P170: 0 | Q170: 10000 | R170: 10000 | S170: 0 | T170: 0 | U170: 93.35 | V170: 0 | X170: 0 | Y170: 93.45 | AA170: 0 | AC170: - | AD170: - | AF170: 0 | AG170: =ROW() -> 170 | BL170: 1965-08-30 | BM170: 4.12 | BN170: 1968-01-26 | BO170: 4.6 | BP170: 1.000881607 | CJ170: 8.461002786 | CN170: 0 | CR170: 1968-01-26 | CS170: 93.45 | CU170: 1968-01-29 | CV170: 93.35
A171: 1968-02-02 | B171: 92.27 | C171: =AVERAGE(INDIRECT($B$6&ROW()-$C$11+1):B171) -> 92.27 | D171: 0.1486368729 | E171: -0.01294394523 | F171: 0.1356929277 | G171: 2.571923605 | H171: 2.737387068 | J171: 0 | K171: 0 | L171: =IF(MAX(G171:OFFSET(G171,I$11*-1+1,0))-G171>=$L$11,1,0) -> 1 | M171: 0 | N171: 91.87 | O171: 96.47 | P171: 0 | Q171: 10000 | R171: 10000 | S171: 0 | T171: 0 | U171: 91.87 | V171: 0 | X171: 0 | Y171: 92.27 | AA171: 0 | AC171: - | AD171: - | AF171: 0 | AG171: =ROW() -> 171 | BL171: 1965-08-31 | BM171: 4.12 | BN171: 1968-02-02 | BO171: 4.71 | BP171: 1.000902689 | CJ171: 5.620421245 | CN171: 0 | CR171: 1968-02-02 | CS171: 92.27 | CU171: 1968-02-05 | CV171: 91.87
A172: 1968-02-09 | B172: 89.86 | C172: =AVERAGE(INDIRECT($B$6&ROW()-$C$11+1):B172) -> 89.86 | D172: 0.09345339499 | E172: -0.02400347562 | F172: 0.06944991937 | G172: 2.448886988 | H172: 2.673275939 | J172: 0 | K172: 0 | L172: =IF(MAX(G172:OFFSET(G172,I$11*-1+1,0))-G172>=$L$11,1,0) -> 1 | M172: 0 | N172: 89.86 | O172: 96.47 | P172: 0 | Q172: 10000 | R172: 10000 | S172: 0 | T172: 0 | U172: 89.86 | V172: 0 | X172: 0 | Y172: 89.86 | AA172: 0 | AC172: - | AD172: - | AF172: 0 | AG172: =ROW() -> 172 | BL172: 1965-09-01 | BM172: 4.01 | BN172: 1968-02-09 | BO172: 4.71 | BP172: 1.000902689 | CJ172: 2.708881015 | CN172: 0 | CR172: 1968-02-09 | CS172: 89.86 | CU172: 1968-02-12 | CV172: 89.86
A173: 1968-02-16 | B173: 89.96 | C173: =AVERAGE(INDIRECT($B$6&ROW()-$C$11+1):B173) -> 89.96 | D173: 0.0642375488 | E173: -0.01121125522 | F173: 0.05302629358 | G173: 2.319811501 | H173: 2.594728286 | J173: 0 | K173: 0 | L173: =IF(MAX(G173:OFFSET(G173,I$11*-1+1,0))-G173>=$L$11,1,0) -> 1 | M173: 0 | N173: 90.31 | O173: 96.47 | P173: 0 | Q173: 10000 | R173: 10000 | S173: 0 | T173: 0 | U173: 90.31 | V173: 0 | X173: 0 | Y173: 89.96 | AA173: 0 | AC173: - | AD173: - | AF173: 0 | AG173: =ROW() -> 173 | BL173: 1965-09-02 | BM173: 4.01 | BN173: 1968-02-16 | BO173: 4.71 | BP173: 1.000902689 | CJ173: 2.355216748 | CN173: 0 | CR173: 1968-02-16 | CS173: 89.96 | CU173: 1968-02-19 | CV173: 90.31
A174: 1968-02-23 | B174: 90.89 | C174: =AVERAGE(INDIRECT($B$6&ROW()-$C$11+1):B174) -> 90.89 | D174: 0.05600092948 | E174: 0.01225080744 | F174: 0.06825173692 | G174: 2.203929286 | H174: 2.507884064 | J174: 0 | K174: 0 | L174: =IF(MAX(G174:OFFSET(G174,I$11*-1+1,0))-G174>=$L$11,1,0) -> 1 | M174: 0 | N174: 90.18 | O174: 96.47 | P174: 0 | Q174: 10000 | R174: 10000 | S174: 0 | T174: 0 | U174: 90.18 | V174: 0 | X174: 0 | Y174: 90.89 | AA174: 0 | AC174: - | AD174: - | AF174: 0 | AG174: =ROW() -> 174 | BL174: 1965-09-03 | BM174: 4.01 | BN174: 1968-02-23 | BO174: 4.71 | BP174: 1.000902689 | BQ174: =IF(M174<>M173,1,IF(M174=1,0,BQ173*BP174)) -> 0 | CJ174: 3.981237845 | CN174: 0 | CR174: 1968-02-23 | CS174: 90.89 | CU174: 1968-02-26 | CV174: 90.18
A175: 1968-03-01 | B175: 89.11 | C175: =AVERAGE(INDIRECT($B$6&ROW()-$C$11+1):B175) -> 89.11 | D175: 0.03423862581 | E175: -0.02675840979 | F175: 0.007480216027 | G175: 2.054827898 | H175: 2.407204916 | J175: 0 | K175: 0 | L175: =IF(MAX(G175:OFFSET(G175,I$11*-1+1,0))-G175>=$L$11,1,0) -> 1 | M175: 0 | N175: 87.92 | O175: 96.47 | P175: 0 | Q175: 10000 | R175: 10000 | S175: 0 | T175: 0 | U175: 87.92 | V175: 0 | X175: 0 | Y175: 89.11 | AA175: 0 | AC175: - | AD175: - | AF175: 0 | AG175: =ROW() -> 175 | BL175: 1965-09-07 | BM175: 4.01 | BN175: 1968-03-01 | BO175: 5.05 | BP175: 1.000967851 | BQ175: 0 | CJ175: 0.9287575037 | CN175: 0 | CR175: 1968-03-01 | CS175: 89.11 | CU175: 1968-03-04 | CV175: 87.92
A176: 1968-03-08 | B176: 89.03 | C176: =AVERAGE(INDIRECT($B$6&ROW()-$C$11+1):B176) -> 89.03 | D176: 0.01911630037 | E176: -0.03792954398 | F176: -0.01881324361 | G176: 1.894555205 | H176: 2.293282758 | J176: 0 | K176: 0 | L176: =IF(MAX(G176:OFFSET(G176,I$11*-1+1,0))-G176>=$L$11,1,0) -> 1 | M176: 0 | N176: 90.13 | O176: 96.47 | P176: 0 | Q176: 10000 | R176: 10000 | S176: 0 | T176: 0 | U176: 90.13 | V176: 0 | X176: 0 | Y176: 89.03 | AA176: 0 | AC176: - | AD176: - | AF176: 0 | AG176: =ROW() -> 176 | BL176: 1965-09-08 | BM176: 4.01 | BN176: 1968-03-08 | BO176: 5.05 | BP176: 1.000967851 | BQ176: 0 | CJ176: 0.1574980313 | CN176: 0 | CR176: 1968-03-08 | CS176: 89.03 | CU176: 1968-03-11 | CV176: 90.13
A177: 1968-03-15 | B177: 89.1 | C177: =AVERAGE(INDIRECT($B$6&ROW()-$C$11+1):B177) -> 89.1 | D177: 0.0184021031 | E177: -0.03152173913 | F177: -0.01311963603 | G177: 1.743025983 | H177: 2.171003475 | J177: 0 | K177: 0 | L177: =IF(MAX(G177:OFFSET(G177,I$11*-1+1,0))-G177>=$L$11,1,0) -> 1 | M177: 0 | N177: 89.59 | O177: 96.47 | P177: 0 | Q177: 10000 | R177: 10000 | S177: 0 | T177: 0 | U177: 89.59 | V177: 0 | X177: 0 | Y177: 89.1 | AA177: 0 | AC177: - | AD177: - | AF177: 0 | AG177: =ROW() -> 177 | BL177: 1965-09-09 | BM177: 4.01 | BN177: 1968-03-15 | BO177: 5.05 | BP177: 1.000967851 | BQ177: 0 | CJ177: -1.274238227 | CN177: 0 | CR177: 1968-03-15 | CS177: 89.1 | CU177: 1968-03-18 | CV177: 89.59
A178: 1968-03-22 | B178: 88.42 | C178: =AVERAGE(INDIRECT($B$6&ROW()-$C$11+1):B178) -> 88.42 | D178: 0.006030265104 | E178: -0.02449249779 | F178: -0.01846223269 | G178: 1.593978757 | H178: 2.04277576 | J178: 0 | K178: 0 | L178: =IF(MAX(G178:OFFSET(G178,I$11*-1+1,0))-G178>=$L$11,1,0) -> 1 | M178: 0 | N178: 88.33 | O178: 96.47 | P178: 0 | Q178: 10000 | R178: 10000 | S178: 0 | T178: 0 | U178: 88.33 | V178: 0 | X178: 0 | Y178: 88.42 | AA178: 0 | AC178: - | AD178: - | AF178: 0 | AG178: =ROW() -> 178 | BL178: 1965-09-10 | BM178: 4.01 | BN178: 1968-03-22 | BO178: 5.05 | BP178: 1.000967851 | BQ178: 0 | CJ178: -2.77105784 | CN178: 0 | CR178: 1968-03-22 | CS178: 88.42 | CU178: 1968-03-25 | CV178: 88.33
A179: 1968-03-29 | B179: 90.2 | C179: =AVERAGE(INDIRECT($B$6&ROW()-$C$11+1):B179) -> 90.2 | D179: 0.03191854479 | E179: -0.01625040899 | F179: 0.0156681358 | G179: 1.470833615 | H179: 1.915677505 | J179: 0 | K179: 0 | L179: =IF(MAX(G179:OFFSET(G179,I$11*-1+1,0))-G179>=$L$11,1,0) -> 1 | M179: 0 | N179: 92.48 | O179: 96.47 | P179: 0 | Q179: 10000 | R179: 10000 | S179: 0 | T179: 0 | U179: 92.48 | V179: 0 | X179: 0 | Y179: 90.2 | AA179: 0 | AC179: - | AD179: - | AF179: 0 | AG179: =ROW() -> 179 | BL179: 1965-09-13 | BM179: 4.01 | BN179: 1968-03-29 | BO179: 5.05 | BP179: 1.000967851 | BQ179: 0 | CJ179: 0 | CN179: 0 | CR179: 1968-03-29 | CS179: 90.2 | CU179: 1968-04-01 | CV179: 92.48
A180: 1968-04-05 | B180: 93.29 | C180: =AVERAGE(INDIRECT($B$6&ROW()-$C$11+1):B180) -> 93.29 | D180: 0.0566315551 | E180: 0.005930558551 | F180: 0.06256211365 | G180: 1.380750178 | H180: 1.796804766 | J180: 0 | K180: 0 | L180: =IF(MAX(G180:OFFSET(G180,I$11*-1+1,0))-G180>=$L$11,1,0) -> 1 | M180: 0 | N180: 94.95 | O180: 96.47 | P180: 0 | Q180: 10000 | R180: 10000 | S180: 0 | T180: 0 | U180: 94.95 | V180: 0 | X180: 0 | Y180: 93.29 | AA180: 0 | AC180: - | AD180: - | AF180: 0 | AG180: =ROW() -> 180 | BL180: 1965-09-14 | BM180: 4.01 | BN180: 1968-04-05 | BO180: 5.76 | BP180: 1.001103925 | BQ180: 0 | CJ180: 4.397940913 | CN180: 0 | CR180: 1968-04-05 | CS180: 93.29 | CU180: 1968-04-08 | CV180: 94.95
A181: 1968-04-12 | B181: 96.53 | C181: =AVERAGE(INDIRECT($B$6&ROW()-$C$11+1):B181) -> 96.53 | D181: 0.08594892564 | E181: 0.02647809443 | F181: 0.1124270201 | G181: 1.324290566 | H181: 1.69180161 | J181: 0 | K181: 0 | L181: =IF(MAX(G181:OFFSET(G181,I$11*-1+1,0))-G181>=$L$11,1,0) -> 1 | M181: 0 | N181: 96.59 | O181: 96.47 | P181: 0 | Q181: 10000 | R181: 10000 | S181: 0 | T181: 0 | U181: 96.59 | V181: 0 | X181: 0 | Y181: 96.53 | AA181: 0 | AC181: - | AD181: - | AF181: 0 | AG181: =ROW() -> 181 | BL181: 1965-09-15 | BM181: 4.01 | BN181: 1968-04-12 | BO181: 5.76 | BP181: 1.001103925 | BQ181: 0 | CJ181: 6.745549043 | CN181: 0 | CR181: 1968-04-12 | CS181: 96.53 | CU181: 1968-04-15 | CV181: 96.59
A182: 1968-04-19 | B182: 95.85 | C182: =AVERAGE(INDIRECT($B$6&ROW()-$C$11+1):B182) -> 95.85 | D182: 0.0620498615 | E182: 0.01439305747 | F182: 0.07644291896 | G182: 1.24883754 | H182: 1.59336515 | J182: 0 | K182: 0 | L182: =IF(MAX(G182:OFFSET(G182,I$11*-1+1,0))-G182>=$L$11,1,0) -> 1 | M182: 0 | N182: 95.32 | O182: 96.47 | P182: 0 | Q182: 10000 | R182: 10000 | S182: 0 | T182: 0 | U182: 95.32 | V182: 0 | X182: 0 | Y182: 95.85 | AA182: 0 | AC182: - | AD182: - | AF182: 0 | AG182: =ROW() -> 182 | BL182: 1965-09-16 | BM182: 4.01 | BN182: 1968-04-19 | BO182: 5.76 | BP182: 1.001103925 | BQ182: 0 | CJ182: 3.846153846 | CN182: 0 | CR182: 1968-04-19 | CS182: 95.85 | CU182: 1968-04-22 | CV182: 95.32
A183: 1968-04-26 | B183: 97.21 | C183: =AVERAGE(INDIRECT($B$6&ROW()-$C$11+1):B183) -> 97.21 | D183: 0.06894655817 | E183: 0.01440050089 | F183: 0.08334705906 | G183: 1.181423888 | H183: 1.501822648 | J183: 0 | K183: 0 | L183: =IF(MAX(G183:OFFSET(G183,I$11*-1+1,0))-G183>=$L$11,1,0) -> 1 | M183: 0 | N183: 97.46 | O183: 96.47 | P183: 0 | Q183: 10000 | R183: 10000 | S183: 0 | T183: 0 | U183: 97.46 | V183: 0 | X183: 0 | Y183: 97.21 | AA183: =IF(AND(M182=1,M183=0),10000,0) -> 0 | AC183: =IF(X183>0,"buy","-") -> - | AD183: =IF(AA183>0,"sell","-") -> - | AF183: =10000*M183 -> 0 | AG183: =ROW() -> 183 | BL183: 1965-09-17 | BM183: 4.01 | BN183: 1968-04-26 | BO183: 5.76 | BP183: 1.001103925 | BQ183: 0 | CJ183: 3.403893203 | CN183: 0 | CR183: 1968-04-26 | CS183: 97.21 | CU183: 1968-04-29 | CV183: 97.46
A184: 1968-05-03 | B184: 98.66 | C184: =AVERAGE(INDIRECT($B$6&ROW()-$C$11+1):B184) -> 98.66 | D184: 0.09379157428 | E184: 0.03688912244 | F184: 0.1306806967 | G184: 1.147542433 | H184: 1.423093711 | J184: 0 | K184: 0 | L184: =IF(MAX(G184:OFFSET(G184,I$11*-1+1,0))-G184>=$L$11,1,0) -> 1 | M184: 0 | N184: 98.35 | O184: 96.47 | P184: 0 | Q184: 10000 | R184: 10000 | S184: 0 | T184: 0 | U184: 98.35 | V184: 0 | X184: 0 | Y184: =B184 -> 98.66 | AA184: 0 | AC184: - | AD184: - | AF184: 0 | AG184: =ROW() -> 184 | BL184: 1965-09-20 | BM184: 4.01 | BN184: 1968-05-03 | BO184: 6.11 | BP184: 1.001171004 | BQ184: 0 | CJ184: 4.468445574 | CN184: 0 | CR184: 1968-05-03 | CS184: 98.66 | CU184: 1968-05-06 | CV184: 98.35
A185: 1968-05-10 | B185: 98.5 | C185: =AVERAGE(INDIRECT($B$6&ROW()-$C$11+1):B185) -> 98.5 | D185: 0.1022829006 | E185: 0.03924878666 | F185: 0.1415316873 | G185: 1.125826828 | H185: 1.357034404 | J185: 0 | K185: 0 | L185: =IF(MAX(G185:OFFSET(G185,I$11*-1+1,0))-G185>=$L$11,1,0) -> 1 | M185: 0 | N185: 98.19 | O185: 96.47 | P185: 0 | Q185: 10000 | R185: 10000 | S185: 0 | T185: 0 | U185: 98.19 | V185: 0 | X185: 0 | Y185: 98.5 | AA185: 0 | AC185: - | AD185: - | AF185: 0 | AG185: =ROW() -> 185 | BL185: 1965-09-21 | BM185: 4.01 | BN185: 1968-05-10 | BO185: 6.11 | BP185: 1.001171004 | BQ185: 0 | CJ185: 5.370132649 | CN185: 0 | CR185: 1968-05-10 | CS185: 98.5 | CU185: 1968-05-13 | CV185: 98.19
A186: 1968-05-17 | B186: 96.9 | C186: =AVERAGE(INDIRECT($B$6&ROW()-$C$11+1):B186) -> 96.9 | D186: 0.07154705297 | E186: 0.04530744337 | F186: 0.1168544963 | G186: 1.09485511 | H186: 1.298772338 | J186: 0 | K186: 0 | L186: =IF(MAX(G186:OFFSET(G186,I$11*-1+1,0))-G186>=$L$11,1,0) -> 1 | M186: 0 | N186: 96.45 | O186: 96.47 | P186: 0 | Q186: 10000 | R186: 10000 | S186: 0 | T186: 0 | U186: 96.45 | V186: 0 | X186: 0 | Y186: 96.9 | AA186: 0 | AC186: - | AD186: - | AF186: 0 | AG186: =ROW() -> 186 | BL186: 1965-09-22 | BM186: 4.01 | BN186: 1968-05-17 | BO186: 6.11 | BP186: 1.001171004 | BQ186: 0 | CJ186: 5.246008472 | CN186: 0 | CR186: 1968-05-17 | CS186: 96.9 | CU186: 1968-05-20 | CV186: 96.45
A187: 1968-05-24 | B187: 97.15 | C187: =AVERAGE(INDIRECT($B$6&ROW()-$C$11+1):B187) -> 97.15 | D187: 0.0525460455 | E187: 0.03704099061 | F187: 0.08958703611 | G187: 1.052850224 | H187: 1.24412298 | J187: 0 | K187: 0 | L187: =IF(MAX(G187:OFFSET(G187,I$11*-1+1,0))-G187>=$L$11,1,0) -> 1 | M187: 0 | N187: 96.99 | O187: 96.47 | P187: 0 | Q187: 10000 | R187: 10000 | S187: 0 | T187: 0 | U187: 96.99 | V187: 0 | X187: 0 | Y187: 97.15 | AA187: 0 | AC187: - | AD187: - | AF187: 0 | AG187: =ROW() -> 187 | BL187: 1965-09-23 | BM187: 4.01 | BN187: 1968-05-24 | BO187: 6.11 | BP187: 1.001171004 | BQ187: 0 | CJ187: 6.781710266 | CN187: 0 | CR187: 1968-05-24 | CS187: 97.15 | CU187: 1968-05-27 | CV187: 96.99
A188: 1968-05-31 | B188: 98.68 | C188: =AVERAGE(INDIRECT($B$6&ROW()-$C$11+1):B188) -> 98.68 | D188: 0.04967556643 | E188: 0.04578211106 | F188: 0.09545767749 | G188: 1.01978475 | H188: 1.19427004 | J188: 0 | K188: 0 | L188: =IF(MAX(G188:OFFSET(G188,I$11*-1+1,0))-G188>=$L$11,1,0) -> 1 | M188: 0 | N188: 99.99 | O188: 96.47 | P188: 0 | Q188: 10000 | R188: 10000 | S188: 0 | T188: 0 | U188: 99.99 | V188: 0 | X188: 0 | Y188: 98.68 | AA188: 0 | AC188: - | AD188: - | AF188: 0 | AG188: =ROW() -> 188 | BL188: 1965-09-24 | BM188: 4.01 | BN188: 1968-05-31 | BO188: 6.11 | BP188: 1.001171004 | BQ188: 0 | CJ188: 9.900879831 | CN188: 0 | CR188: 1968-05-31 | CS188: 98.68 | CU188: 1968-06-03 | CV188: 99.99
A189: 1968-06-07 | B189: 101.27 | C189: =AVERAGE(INDIRECT($B$6&ROW()-$C$11+1):B189) -> 101.27 | D189: 0.0723210504 | E189: 0.05193725979 | F189: 0.1242583102 | G189: 1.008036925 | H189: 1.152884903 | J189: 0 | K189: 0 | L189: =IF(MAX(G189:OFFSET(G189,I$11*-1+1,0))-G189>=$L$11,1,0) -> 1 | M189: 0 | N189: 101.41 | O189: 96.47 | P189: 0 | Q189: 10000 | R189: 10000 | S189: 0 | T189: 0 | U189: 101.41 | V189: 0 | X189: 0 | Y189: 101.27 | AA189: 0 | AC189: - | AD189: - | AF189: 0 | AG189: =ROW() -> 189 | BL189: 1965-09-27 | BM189: 4.01 | BN189: 1968-06-07 | BO189: 6.07 | BP189: 1.001163338 | BQ189: 0 | CJ189: 10.60506772 | CN189: 0 | CR189: 1968-06-07 | CS189: 101.27 | CU189: 1968-06-10 | CV189: 101.41
A190: 1968-06-14 | B190: 101.13 | C190: =AVERAGE(INDIRECT($B$6&ROW()-$C$11+1):B190) -> 101.13 | D190: 0.08183568678 | E190: 0.04257731959 | F190: 0.1244130064 | G190: 0.9998932052 | H190: 1.118886748 | J190: 0 | K190: 0 | L190: =IF(MAX(G190:OFFSET(G190,I$11*-1+1,0))-G190>=$L$11,1,0) -> 1 | M190: 0 | N190: 100.13 | O190: 96.47 | P190: 0 | Q190: 10000 | R190: 10000 | S190: 0 | T190: 0 | U190: 100.13 | V190: 0 | X190: 0 | Y190: 101.13 | AA190: 0 | AC190: - | AD190: - | AF190: 0 | AG190: =ROW() -> 190 | BL190: 1965-09-28 | BM190: 4.01 | BN190: 1968-06-14 | BO190: 6.07 | BP190: 1.001163338 | BQ190: 0 | CJ190: 9.282472444 | CN190: 0 | CR190: 1968-06-14 | CS190: 101.13 | CU190: 1968-06-17 | CV190: 100.13
A191: 1968-06-21 | B191: 100.66 | C191: =AVERAGE(INDIRECT($B$6&ROW()-$C$11+1):B191) -> 100.66 | D191: 0.09329857717 | E191: 0.04084375969 | F191: 0.1341423369 | G191: =SUMPRODUCT(F144:F191,$G$29:$G$76)*10 -> 0.9999835398 | H191: 1.092463813 | J191: 0 | K191: 0 | L191: =IF(MAX(G191:OFFSET(G191,I$11*-1+1,0))-G191>=$L$11,1,0) -> 1 | M191: 0 | N191: 100.39 | O191: 96.47 | P191: 0 | Q191: 10000 | R191: 10000 | S191: 0 | T191: 0 | U191: 100.39 | V191: 0 | X191: 0 | Y191: 100.66 | AA191: 0 | AC191: - | AD191: - | AF191: 0 | AG191: =ROW() -> 191 | BL191: 1965-09-29 | BM191: 4.01 | BN191: 1968-06-21 | BO191: 6.07 | BP191: 1.001163338 | BQ191: 0 | CJ191: 9.413043478 | CN191: 0 | CR191: 1968-06-21 | CS191: 100.66 | CU191: 1968-06-24 | CV191: 100.39
A192: 1968-06-28 | B192: 99.58 | C192: =AVERAGE(INDIRECT($B$6&ROW()-$C$11+1):B192) -> 99.58 | D192: 0.09452626951 | E192: 0.02385358832 | F192: 0.1183798578 | G192: 0.9938297483 | H192: 1.070545132 | J192: 0 | K192: 0 | L192: =IF(MAX(G192:OFFSET(G192,I$11*-1+1,0))-G192>=$L$11,1,0) -> 1 | M192: 0 | N192: 99.4 | O192: 96.47 | P192: 0 | Q192: 10000 | R192: 10000 | S192: 0 | T192: 0 | U192: 99.4 | V192: 0 | X192: 0 | Y192: 99.58 | AA192: 0 | AC192: - | AD192: - | AF192: 0 | AG192: =ROW() -> 192 | BL192: 1965-09-30 | BM192: 4.01 | BN192: 1968-06-28 | BO192: 6.07 | BP192: 1.001163338 | BQ192: 0 | CJ192: 9.863195057 | CN192: 0 | CR192: 1968-06-28 | CS192: 99.58 | CU192: 1968-07-01 | CV192: 99.4
A193: 1968-07-05 | B193: 100.91 | C193: =AVERAGE(INDIRECT($B$6&ROW()-$C$11+1):B193) -> 100.91 | D193: 0.1238445261 | E193: 0.05114583333 | F193: 0.1749903594 | G193: 1.024925915 | H193: 1.060407528 | J193: 0 | K193: 0 | L193: =IF(MAX(G193:OFFSET(G193,I$11*-1+1,0))-G193>=$L$11,1,0) -> 1 | M193: 0 | N193: 101.94 | O193: 96.47 | P193: 0 | Q193: 10000 | R193: 10000 | S193: 0 | T193: 0 | U193: 101.94 | V193: 0 | X193: 0 | Y193: 100.91 | AA193: 0 | AC193: - | AD193: - | AF193: 0 | AG193: =ROW() -> 193 | BL193: 1965-10-01 | BM193: 4.08 | BN193: 1968-07-05 | BO193: 6.02 | BP193: 1.001153755 | BQ193: 0 | CJ193: 10.05562221 | CN193: 0 | CR193: 1968-07-05 | CS193: 100.91 | CU193: 1968-07-08 | CV193: 101.94
A194: 1968-07-12 | B194: 102.34 | C194: =AVERAGE(INDIRECT($B$6&ROW()-$C$11+1):B194) -> 102.34 | D194: 0.1177370031 | E194: 0.0729712728 | F194: 0.1907082759 | G194: 1.067242619 | H194: 1.061926437 | J194: 1 | K194: 0 | L194: =IF(MAX(G194:OFFSET(G194,I$11*-1+1,0))-G194>=$L$11,1,0) -> 1 | M194: 0 | N194: 102.26 | O194: 96.47 | P194: 0 | Q194: 10000 | R194: 10000 | S194: 0 | T194: 0 | U194: 102.26 | V194: 0 | X194: 0 | Y194: 102.34 | AA194: 0 | AC194: - | AD194: - | AF194: 0 | AG194: =ROW() -> 194 | BL194: 1965-10-04 | BM194: 4.08 | BN194: 1968-07-12 | BO194: 6.02 | BP194: 1.001153755 | BQ194: 0 | CJ194: 10.35152038 | CN194: 0 | CR194: 1968-07-12 | CS194: 102.34 | CU194: 1968-07-15 | CV194: 102.26
A195: 1968-07-19 | B195: 100.46 | C195: =AVERAGE(INDIRECT($B$6&ROW()-$C$11+1):B195) -> 100.46 | D195: 0.08558461206 | E195: 0.05791912384 | F195: 0.1435037359 | G195: 1.081899759 | H195: 1.066364953 | J195: 1 | K195: 0 | L195: =IF(MAX(G195:OFFSET(G195,I$11*-1+1,0))-G195>=$L$11,1,0) -> 1 | M195: 0 | N195: 99.33 | O195: 96.47 | P195: 0 | Q195: 10000 | R195: 10000 | S195: 0 | T195: 0 | U195: 99.33 | V195: 0 | X195: 0 | Y195: 100.46 | AA195: 0 | AC195: - | AD195: - | AF195: 0 | AG195: =ROW() -> 195 | BL195: 1965-10-05 | BM195: 4.08 | BN195: 1968-07-19 | BO195: 6.02 | BP195: 1.001153755 | BQ195: 0 | CJ195: 6.826882178 | CN195: 0 | CR195: 1968-07-19 | CS195: 100.46 | CU195: 1968-07-22 | CV195: 99.33
A196: 1968-07-26 | B196: 98.34 | C196: =AVERAGE(INDIRECT($B$6&ROW()-$C$11+1):B196) -> 98.34 | D196: 0.06891304348 | E196: 0.07147526694 | F196: 0.1403883104 | G196: 1.096459975 | H196: 1.073052736 | J196: 1 | K196: 0 | L196: =IF(MAX(G196:OFFSET(G196,I$11*-1+1,0))-G196>=$L$11,1,0) -> 1 | M196: 0 | N196: 97.65 | O196: 96.47 | P196: 0 | Q196: 10000 | R196: 10000 | S196: 0 | T196: 0 | U196: 97.65 | V196: 0 | X196: 0 | Y196: 98.34 | AA196: 0 | AC196: - | AD196: - | AF196: 0 | AG196: =ROW() -> 196 | BL196: 1965-10-06 | BM196: 4.08 | BN196: 1968-07-26 | BO196: 6.02 | BP196: 1.001153755 | BQ196: 0 | CJ196: 4.074505239 | CN196: 0 | CR196: 1968-07-26 | CS196: 98.34 | CU196: 1968-07-29 | CV196: 97.65
A197: 1968-08-02 | B197: 96.63 | C197: =AVERAGE(INDIRECT($B$6&ROW()-$C$11+1):B197) -> 96.63 | D197: 0.06608561342 | E197: 0.04793406355 | F197: 0.114019677 | G197: 1.096257713 | H197: 1.078209397 | J197: 1 | K197: 0 | L197: =IF(MAX(G197:OFFSET(G197,I$11*-1+1,0))-G197>=$L$11,1,0) -> 1 | M197: 0 | N197: 96.85 | O197: 96.47 | P197: 0 | Q197: 10000 | R197: 10000 | S197: 0 | T197: 0 | U197: 96.85 | V197: 0 | X197: 0 | Y197: 96.63 | AA197: 0 | AC197: - | AD197: - | AF197: 0 | AG197: =ROW() -> 197 | BL197: 1965-10-07 | BM197: 4.08 | BN197: 1968-08-02 | BO197: 6.03 | BP197: 1.001155671 | BQ197: 0 | CJ197: 0.8348116456 | CN197: 0 | CR197: 1968-08-02 | CS197: 96.63 | CU197: 1968-08-05 | CV197: 96.85
A198: 1968-08-09 | B198: 97.01 | C198: =AVERAGE(INDIRECT($B$6&ROW()-$C$11+1):B198) -> 97.01 | D198: 0.0580215945 | E198: 0.04514113338 | F198: 0.1031627279 | G198: 1.091614892 | H198: 1.081188396 | J198: 1 | K198: 0 | L198: =IF(MAX(G198:OFFSET(G198,I$11*-1+1,0))-G198>=$L$11,1,0) -> 1 | M198: 0 | N198: 98.01 | O198: 96.47 | P198: 0 | Q198: 10000 | R198: 10000 | S198: 0 | T198: 0 | U198: 98.01 | V198: 0 | X198: 0 | Y198: 97.01 | AA198: 0 | AC198: - | AD198: - | AF198: 0 | AG198: =ROW() -> 198 | BL198: 1965-10-08 | BM198: 4.08 | BN198: 1968-08-09 | BO198: 6.03 | BP198: 1.001155671 | BQ198: 0 | CJ198: 1.954808198 | CN198: 0 | CR198: 1968-08-09 | CS198: 97.01 | CU198: 1968-08-12 | CV198: 98.01
A199: 1968-08-16 | B199: 98.68 | C199: =AVERAGE(INDIRECT($B$6&ROW()-$C$11+1):B199) -> 98.68 | D199: 0.06405003235 | E199: 0.05090521832 | F199: 0.1149552507 | G199: 1.097331181 | H199: 1.084775682 | J199: 1 | K199: 0 | L199: =IF(MAX(G199:OFFSET(G199,I$11*-1+1,0))-G199>=$L$11,1,0) -> 1 | M199: 0 | N199: 99 | O199: 96.47 | P199: 0 | Q199: 10000 | R199: 10000 | S199: 0 | T199: 0 | U199: 99 | V199: 0 | X199: 0 | Y199: 98.68 | AA199: 0 | AC199: - | AD199: - | AF199: 0 | AG199: =ROW() -> 199 | BL199: 1965-10-11 | BM199: 4.08 | BN199: 1968-08-16 | BO199: 6.03 | BP199: 1.001155671 | BQ199: 0 | CJ199: 4.11479215 | CN199: 0 | CR199: 1968-08-16 | CS199: 98.68 | CU199: 1968-08-19 | CV199: 99
A200: 1968-08-23 | B200: 98.69 | C200: =AVERAGE(INDIRECT($B$6&ROW()-$C$11+1):B200) -> 98.69 | D200: 0.04944704381 | E200: 0.04433862434 | F200: 0.09378566815 | G200: 1.092931062 | H200: 1.086587988 | J200: 1 | K200: 0 | L200: =IF(MAX(G200:OFFSET(G200,I$11*-1+1,0))-G200>=$L$11,1,0) -> 1 | M200: 0 | N200: 98.94 | O200: 96.47 | P200: 0 | Q200: 10000 | R200: 10000 | S200: 0 | T200: 0 | U200: 98.94 | V200: 0 | X200: 0 | Y200: 98.69 | AA200: 0 | AC200: - | AD200: - | AF200: 0 | AG200: =ROW() -> 200 | BL200: 1965-10-12 | BM200: 4.08 | BN200: 1968-08-23 | BO200: 6.03 | BP200: 1.001155671 | BQ200: 0 | CJ200: 6.461704423 | CN200: 0 | CR200: 1968-08-23 | CS200: 98.69 | CU200: 1968-08-26 | CV200: 98.94
... 925 more rows
